Body Name,Body,Service Division Label,Service Division Code,Organisational Unit,Expenditure Category,Expenditure Code,CIPFA detailed expediture type,CIPFA detailed expediture code,Narrative,Date,Transaction number,Net Amount,Capital and Revenue,Supplier Name,Supplier ID
Chorley Borough Council,http://statistics.data.gov.uk/id/local-authority/30UE,Capital,Capital,Streetscene & Leisure Contracts,Main Contractor,3007,Capital Expenditure,Capital,"Drainage work on Jubilee Rec as per quote to excavate existing manhole and drainage pipe, dispose create new manhole ",13/02/2015,100999,"3,440.00",Capital,A Middleton,61789
Chorley Borough Council,http://statistics.data.gov.uk/id/local-authority/30UE,Central Support Services,1009,"Customer, ICT & Transactional",Training Course Fees,17010,Indirect Employee Expenses,5002,"The Freedom of Information Act: An A-Z Guide - 1 day course, 5th Feb 2015. Manchester.",11/02/2015,99234,265.00,Revenue,Act Now Training LTD,19583
Chorley Borough Council,http://statistics.data.gov.uk/id/local-authority/30UE,Central Support Services,1009,"Customer, ICT & Transactional",Training Course Fees,17010,Indirect Employee Expenses,5002,"The Data Protection Act: An A-Z Guide - 1 day course, 6th Feb 2015. Manchester.",11/02/2015,99235,265.00,Revenue,Act Now Training LTD,19583
Chorley Borough Council,http://statistics.data.gov.uk/id/local-authority/30UE,Democratic Represent and  Mgnt,1007,Streetscene & Leisure Contracts,Exhibitions,40176,Miscellaneous Expenses,5034,Astley Illuminated Saturday 22rd November and Sunday 23rd November Hire of equipment to light up the hall 1900.80,25/02/2015,101039,"1,584.00",Revenue,Active Audio Visual,21379
Chorley Borough Council,http://statistics.data.gov.uk/id/local-authority/30UE,Democratic Represent and  Mgnt,1007,Streetscene & Leisure Contracts,External Contractor - Trust or Charity,50008,Private Contractors,5042,Amended Active Nation Monthly Management Fee For the period May 2014 - March 2015 Monthly Fee to be invoiced ,11/02/2015,100877,"32,556.10",Revenue,Active Nation UK Ltd,17144
Chorley Borough Council,http://statistics.data.gov.uk/id/local-authority/30UE,Capital,Capital,Streetscene & Leisure Contracts,Main Contractor,3007,Capital Expenditure,Capital,"Repairs to riverside wall at Ackhurst Lodge, Astley Park comprising back ivy, dismantle wall, rebuild and leave site tidy",20/02/2015,101047,570.00,Capital,Adlington Dry Stone Walling,63372
Chorley Borough Council,http://statistics.data.gov.uk/id/local-authority/30UE,Capital,Capital,Streetscene & Leisure Contracts,Main Contractor,3007,Capital Expenditure,Capital,Materials,20/02/2015,101047,280.00,Capital,Adlington Dry Stone Walling,63372
Chorley Borough Council,http://statistics.data.gov.uk/id/local-authority/30UE,Central Support Services,1009,Governance,Burglar Alarms & Security Systems,20075,Fixtures and Fittings,5010,Supply and fit of a new CCTV camera above the Customer Services Desk (Fast-track) at Union St,11/02/2015,100707,617.09,Revenue,ADT Fire & Security,16645
Chorley Borough Council,http://statistics.data.gov.uk/id/local-authority/30UE,Central Support Services,1009,Governance,Burglar Alarms & Security Systems,20075,Fixtures and Fittings,5010,"Access Controllers to be fitted to the existing system at Union St. in the new Front Office area. Job No: 121851/0",27/02/2015,101285,"2,766.00",Revenue,ADT Fire & Security,16645
Chorley Borough Council,http://statistics.data.gov.uk/id/local-authority/30UE,Service Management & Support,1009,Streetscene & Leisure Contracts,Vehicle Maintenance,30045,Direct Transport Costs,5016,Supply side skids for Schmidt Swingo 200,20/02/2015,101099,539.31,Revenue,Aebi Schmidt UK Ltd,17287
Chorley Borough Council,http://statistics.data.gov.uk/id/local-authority/30UE,Service Management & Support,1009,Streetscene & Leisure Contracts,Vehicle Maintenance,30045,Direct Transport Costs,5016,Supply rear skids for Swingo 200,20/02/2015,101099,253.96,Revenue,Aebi Schmidt UK Ltd,17287
Chorley Borough Council,http://statistics.data.gov.uk/id/local-authority/30UE,Service Management & Support,1009,Streetscene & Leisure Contracts,Vehicle Maintenance,30045,Direct Transport Costs,5016,Freight,20/02/2015,101099,29.15,Revenue,Aebi Schmidt UK Ltd,17287
Chorley Borough Council,http://statistics.data.gov.uk/id/local-authority/30UE,Community Development,1097,Policy & Performance,Grants To Other Organisations,40127,Grants and Subscriptions,5031,contract for volunteering,18/02/2015,100916,"10,000.00",Revenue,Age UK,21252
Chorley Borough Council,http://statistics.data.gov.uk/id/local-authority/30UE,Economic Development,1096,Economic Development,Grants To Other Organisations,40127,Grants and Subscriptions,5031,Shop Front Grant,11/02/2015,100712,"4,800.00",Revenue,Allen`s Butchers,68720
Chorley Borough Council,http://statistics.data.gov.uk/id/local-authority/30UE,Unapportionable Central OHeads,1009,"Customer, ICT & Transactional",Bank Charges,40151,Miscellaneous Expenses,5034,Additional account Fees,13/02/2015,100800,10.00,Revenue,Allpay Net Ltd,17242
Chorley Borough Council,http://statistics.data.gov.uk/id/local-authority/30UE,Central Support Services,1009,"Customer, ICT & Transactional",Bank Charges,40151,Miscellaneous Expenses,5034,Post Office Transaction,13/02/2015,100800,913.07,Revenue,Allpay Net Ltd,17242
Chorley Borough Council,http://statistics.data.gov.uk/id/local-authority/30UE,Unapportionable Central OHeads,1009,"Customer, ICT & Transactional",Bank Charges,40151,Miscellaneous Expenses,5034,PayPoint Transasctions,13/02/2015,100800,594.53,Revenue,Allpay Net Ltd,17242
Chorley Borough Council,http://statistics.data.gov.uk/id/local-authority/30UE,Central Support Services,1009,"Customer, ICT & Transactional",Bank Charges,40151,Miscellaneous Expenses,5034,Webconnect Monthly Charge,13/02/2015,100800,33.97,Revenue,Allpay Net Ltd,17242
Chorley Borough Council,http://statistics.data.gov.uk/id/local-authority/30UE,Unapportionable Central OHeads,1009,Shared Service Arrangement,Car Leasing Payment,14100,Direct Employee Expenses,5001,Lease Car,18/02/2015,100914,252.96,Revenue,Alphabet (Uk) Fleet Management Ltd,16651
Chorley Borough Council,http://statistics.data.gov.uk/id/local-authority/30UE,Central Support Services,1009,Shared Service Arrangement,Car Leasing Payment,14100,Direct Employee Expenses,5001,Lease Car,18/02/2015,100914,23.28,Revenue,Alphabet (Uk) Fleet Management Ltd,16651
Chorley Borough Council,http://statistics.data.gov.uk/id/local-authority/30UE,Democratic Represent and  Mgnt,1007,Shared Service Arrangement,Transport Operating Leases,30029,Contrct Hire & Operating Lease,5018,Lease Car,18/02/2015,100914,340.07,Revenue,Alphabet (Uk) Fleet Management Ltd,16651
Chorley Borough Council,http://statistics.data.gov.uk/id/local-authority/30UE,Democratic Represent and  Mgnt,1007,Shared Service Arrangement,Transport Operating Leases,30029,Contrct Hire & Operating Lease,5018,Lease Car,18/02/2015,100914,31.59,Revenue,Alphabet (Uk) Fleet Management Ltd,16651
Chorley Borough Council,http://statistics.data.gov.uk/id/local-authority/30UE,Unapportionable Central OHeads,1009,Shared Service Arrangement,Car Leasing Payment,14100,Direct Employee Expenses,5001,Lease Car,18/02/2015,100914,197.16,Revenue,Alphabet (Uk) Fleet Management Ltd,16651
Chorley Borough Council,http://statistics.data.gov.uk/id/local-authority/30UE,Unapportionable Central OHeads,1009,Shared Service Arrangement,Car Leasing Payment,14100,Direct Employee Expenses,5001,Lease Car,18/02/2015,100914,16.71,Revenue,Alphabet (Uk) Fleet Management Ltd,16651
Chorley Borough Council,http://statistics.data.gov.uk/id/local-authority/30UE,Service Management & Support,1009,Shared Service Arrangement,Car Leasing Payment,14100,Direct Employee Expenses,5001,Lease Car,18/02/2015,100914,32.96,Revenue,Alphabet (Uk) Fleet Management Ltd,16651
Chorley Borough Council,http://statistics.data.gov.uk/id/local-authority/30UE,Service Management & Support,1009,Shared Service Arrangement,Car Leasing Payment,14100,Direct Employee Expenses,5001,Lease Car,18/02/2015,100914,2.99,Revenue,Alphabet (Uk) Fleet Management Ltd,16651
Chorley Borough Council,http://statistics.data.gov.uk/id/local-authority/30UE,Economic Development,1096,Economic Development,Cleaning Materials,40019,"Equipment, Furniture & Materia",5023,Please supply items as per email ,18/02/2015,100832,291.56,Revenue,Amtoll Ltd,21738
Chorley Borough Council,http://statistics.data.gov.uk/id/local-authority/30UE,Homelessness,1075,Housing,Cleaning Materials,40019,"Equipment, Furniture & Materia",5023,Lightweight Colour Coded Handle Aluminium (RED),20/02/2015,100848,15.00,Revenue,Amtoll Ltd,21738
Chorley Borough Council,http://statistics.data.gov.uk/id/local-authority/30UE,Homelessness,1075,Housing,Cleaning Materials,40019,"Equipment, Furniture & Materia",5023,Lightweight Colour Coded Brush Head (RED),20/02/2015,100848,28.20,Revenue,Amtoll Ltd,21738
Chorley Borough Council,http://statistics.data.gov.uk/id/local-authority/30UE,Homelessness,1075,Housing,Cleaning Materials,40019,"Equipment, Furniture & Materia",5023,Laundry Powder - 100 Washes (NON BIO),20/02/2015,100848,9.80,Revenue,Amtoll Ltd,21738
Chorley Borough Council,http://statistics.data.gov.uk/id/local-authority/30UE,Homelessness,1075,Housing,Cleaning Materials,40019,"Equipment, Furniture & Materia",5023,Jangro Concentrated Lemon Detergent 20% active washing up liquid 5 Ltr,20/02/2015,100848,6.32,Revenue,Amtoll Ltd,21738
Chorley Borough Council,http://statistics.data.gov.uk/id/local-authority/30UE,Homelessness,1075,Housing,Cleaning Materials,40019,"Equipment, Furniture & Materia",5023,"Jangro Jumbo Toilet Roll, 12 Pack",20/02/2015,100848,17.78,Revenue,Amtoll Ltd,21738
Chorley Borough Council,http://statistics.data.gov.uk/id/local-authority/30UE,Homelessness,1075,Housing,Cleaning Materials,40019,"Equipment, Furniture & Materia",5023,Hand Towels Interleaved (5000 per box),20/02/2015,100848,36.93,Revenue,Amtoll Ltd,21738
Chorley Borough Council,http://statistics.data.gov.uk/id/local-authority/30UE,Homelessness,1075,Housing,Cleaning Materials,40019,"Equipment, Furniture & Materia",5023,Bleach - 5 Litres,20/02/2015,100848,40.00,Revenue,Amtoll Ltd,21738
Chorley Borough Council,http://statistics.data.gov.uk/id/local-authority/30UE,Homelessness,1075,Housing,Cleaning Materials,40019,"Equipment, Furniture & Materia",5023,Colour Coded Mop Handle (RED),20/02/2015,100848,45.24,Revenue,Amtoll Ltd,21738
Chorley Borough Council,http://statistics.data.gov.uk/id/local-authority/30UE,Homelessness,1075,Housing,Cleaning Materials,40019,"Equipment, Furniture & Materia",5023,Colour Coded Mop Head (RED),20/02/2015,100848,10.68,Revenue,Amtoll Ltd,21738
Chorley Borough Council,http://statistics.data.gov.uk/id/local-authority/30UE,Homelessness,1075,Housing,Cleaning Materials,40019,"Equipment, Furniture & Materia",5023,Jangro Floor Gel - (Lemon) 5Ltr,20/02/2015,100848,17.72,Revenue,Amtoll Ltd,21738
Chorley Borough Council,http://statistics.data.gov.uk/id/local-authority/30UE,Homelessness,1075,Housing,Cleaning Materials,40019,"Equipment, Furniture & Materia",5023,Jangro Perfumed Toilet Cleaner 5ltr,20/02/2015,100848,14.04,Revenue,Amtoll Ltd,21738
Chorley Borough Council,http://statistics.data.gov.uk/id/local-authority/30UE,Homelessness,1075,Housing,Cleaning Materials,40019,"Equipment, Furniture & Materia",5023,Toilet Brush + Holder - (closed),20/02/2015,100848,12.00,Revenue,Amtoll Ltd,21738
Chorley Borough Council,http://statistics.data.gov.uk/id/local-authority/30UE,Homelessness,1075,Housing,Cleaning Materials,40019,"Equipment, Furniture & Materia",5023,Jangro Combi Oven Cleaner 5ltr,20/02/2015,100848,26.86,Revenue,Amtoll Ltd,21738
Chorley Borough Council,http://statistics.data.gov.uk/id/local-authority/30UE,Homelessness,1075,Housing,Cleaning Materials,40019,"Equipment, Furniture & Materia",5023,Heavy Duty Rubber Gloves Pack of 12 (Black) - Small,20/02/2015,100848,13.70,Revenue,Amtoll Ltd,21738
Chorley Borough Council,http://statistics.data.gov.uk/id/local-authority/30UE,Homelessness,1075,Housing,Cleaning Materials,40019,"Equipment, Furniture & Materia",5023,Jangro Carpet Spot + Stain Remover 750ml,20/02/2015,100848,4.98,Revenue,Amtoll Ltd,21738
Chorley Borough Council,http://statistics.data.gov.uk/id/local-authority/30UE,Unapportionable Central OHeads,1009,Governance,Cleaning Materials,40019,"Equipment, Furniture & Materia",5023,Cleaning materials for town hall and union street.,13/02/2015,100869,"1,112.97",Revenue,Amtoll Ltd,21738
Chorley Borough Council,http://statistics.data.gov.uk/id/local-authority/30UE,Central Support Services,1009,Health Environment & Neighbourhoods,Sports Development Initiatives,40186,Miscellaneous Expenses,5034,5 Groups - Half Days Activities - 12th Feb 2015 ,18/02/2015,100928,617.50,Revenue,Anderton Centre - LOAI,56108
Chorley Borough Council,http://statistics.data.gov.uk/id/local-authority/30UE,Central Support Services,1009,Streetscene & Leisure Contracts,Miscellaneous Expenses,40200,Miscellaneous Expenses,5034,Astley Village Neighbourhood Project Supply and fit additional section of ornate fencing,11/02/2015,100678,680.00,Revenue,Ark Welding Ltd,18154
Chorley Borough Council,http://statistics.data.gov.uk/id/local-authority/30UE,Central Support Services,1009,Streetscene & Leisure Contracts,Miscellaneous Expenses,40200,Miscellaneous Expenses,5034,"Attach ornate metal work to Noticeboard as requested by Parish Council, and fit.",11/02/2015,100678,475.00,Revenue,Ark Welding Ltd,18154
Chorley Borough Council,http://statistics.data.gov.uk/id/local-authority/30UE,Corporate Management,1008,Shared Service Arrangement,Car Leasing Payment,14100,Direct Employee Expenses,5001,Car Lease,18/02/2015,101080,"3,852.00",Revenue,Arnold Clark Finance Ltd,20685
Chorley Borough Council,http://statistics.data.gov.uk/id/local-authority/30UE,Corporate Management,1008,Shared Service Arrangement,Car Leasing Payment,14100,Direct Employee Expenses,5001,Car Lease,18/02/2015,101080,345.63,Revenue,Arnold Clark Finance Ltd,20685
Chorley Borough Council,http://statistics.data.gov.uk/id/local-authority/30UE,Central Support Services,1009,Shared Service Arrangement,Car Leasing Payment,14100,Direct Employee Expenses,5001,Car Lease,18/02/2015,101081,"2,568.00",Revenue,Arnold Clark Finance Ltd,20685
Chorley Borough Council,http://statistics.data.gov.uk/id/local-authority/30UE,Central Support Services,1009,Shared Service Arrangement,Car Leasing Payment,14100,Direct Employee Expenses,5001,Car Lease,18/02/2015,101081,213.72,Revenue,Arnold Clark Finance Ltd,20685
Chorley Borough Council,http://statistics.data.gov.uk/id/local-authority/30UE,Regulatory Services,1048,Health Environment & Neighbourhoods,Taxi Testing & Vehicle Safety Report,40234,Services,5027,MOT,13/02/2015,100989,877.60,Revenue,Autocentre LTD,21651
Chorley Borough Council,http://statistics.data.gov.uk/id/local-authority/30UE,Corporate Management,1008,Health Environment & Neighbourhoods,Taxi Testing & Vehicle Safety Report,40234,Services,5027,Taxi Test,13/02/2015,100989,136.80,Revenue,Autocentre LTD,21651
Chorley Borough Council,http://statistics.data.gov.uk/id/local-authority/30UE,Regulatory Services,1048,Health Environment & Neighbourhoods,Taxi Testing & Vehicle Safety Report,40234,Services,5027,MOT,20/02/2015,101137,658.20,Revenue,Autocentre LTD,21651
Chorley Borough Council,http://statistics.data.gov.uk/id/local-authority/30UE,Regulatory Services,1048,Health Environment & Neighbourhoods,Taxi Testing & Vehicle Safety Report,40234,Services,5027,Taxi Test,20/02/2015,101137,99.96,Revenue,Autocentre LTD,21651
Chorley Borough Council,http://statistics.data.gov.uk/id/local-authority/30UE,Service Management & Support,1009,Streetscene & Leisure Contracts,Hire Of Transport,30028,Contrct Hire & Operating Lease,5018,Hire of tracked chipper and trailer at price agreed for 6 week period,25/02/2015,101020,"1,800.00",Revenue,Balmers Garden Machinery,17075
Chorley Borough Council,http://statistics.data.gov.uk/id/local-authority/30UE,Central Support Services,1009,"Customer, ICT & Transactional",Consultants` Fees,40077,Services,5027,"Support as agreed with Customer, Transactional and ICT services 3 days a week.",13/02/2015,100833,"1,800.00",Revenue,REDACTED PERSONAL DATA,22238
Chorley Borough Council,http://statistics.data.gov.uk/id/local-authority/30UE,Corporate Management,1008,Policy & Performance,Consultants` Fees,40077,Services,5027,Policy Support/Consultancy - 20 days between January and March,20/02/2015,100849,450.00,Revenue,REDACTED PERSONAL DATA,22238
Chorley Borough Council,http://statistics.data.gov.uk/id/local-authority/30UE,Homelessness,1075,Housing,Laundry,40042,"Clothing, Uniforms and Laundry",5025,"Linen Service at Cotswold Supported Housing, Cotswold Road, Chorley, Lancashire, PR7 3HW. This is for the period ",20/02/2015,100876,291.87,Revenue,Berendsen UK Ltd,20799
Chorley Borough Council,http://statistics.data.gov.uk/id/local-authority/30UE,Homelessness,1075,Housing,Laundry,40042,"Clothing, Uniforms and Laundry",5025,"Linen Service at Cotswold Supported Housing, Cotswold Road, Chorley, Lancashire, PR7 3HW. This is for the period ",27/02/2015,101288,289.35,Revenue,Berendsen UK Ltd,20799
Chorley Borough Council,http://statistics.data.gov.uk/id/local-authority/30UE,Capital,Capital,Streetscene & Leisure Contracts,Main Contractor,3007,Capital Expenditure,Capital,40 nr square top panels. 2m x 3.5m HS (G) 151 temporary fencing with Rubber blocks and double couplers.  ,13/02/2015,100857,"1,085.00",Capital,Blok`N`Mesh UK Limited,58305
Chorley Borough Council,http://statistics.data.gov.uk/id/local-authority/30UE,Central Support Services,1009,Transformation Management,Gas,20014,Energy Costs,5006,Town Hall,11/02/2015,100809,"1,707.51",Revenue,British Gas Business,22242
Chorley Borough Council,http://statistics.data.gov.uk/id/local-authority/30UE,Culture & Heritage,1036,Transformation Management,Gas,20014,Energy Costs,5006,Astley Park,11/02/2015,100809,"2,099.02",Revenue,British Gas Business,22242
Chorley Borough Council,http://statistics.data.gov.uk/id/local-authority/30UE,Unapportionable Central OHeads,1009,Transformation Management,Gas,20014,Energy Costs,5006,Union Street,11/02/2015,100809,"1,447.98",Revenue,British Gas Business,22242
Chorley Borough Council,http://statistics.data.gov.uk/id/local-authority/30UE,Democratic Represent and  Mgnt,1007,Transformation Management,Gas,20014,Energy Costs,5006,Eaves Green Comm Cntre,11/02/2015,100809,239.28,Revenue,British Gas Business,22242
Chorley Borough Council,http://statistics.data.gov.uk/id/local-authority/30UE,Democratic Represent and  Mgnt,1007,Transformation Management,Gas,20014,Energy Costs,5006,Hallgate,11/02/2015,100809,103.89,Revenue,British Gas Business,22242
Chorley Borough Council,http://statistics.data.gov.uk/id/local-authority/30UE,Democratic Represent and  Mgnt,1007,Transformation Management,Gas,20014,Energy Costs,5006,Astely Village CC,11/02/2015,100809,440.08,Revenue,British Gas Business,22242
Chorley Borough Council,http://statistics.data.gov.uk/id/local-authority/30UE,Democratic Represent and  Mgnt,1007,Transformation Management,Gas,20014,Energy Costs,5006,Clayton Brook Village Hall,11/02/2015,100809,197.36,Revenue,British Gas Business,22242
Chorley Borough Council,http://statistics.data.gov.uk/id/local-authority/30UE,Culture & Heritage,1036,Transformation Management,Gas,20014,Energy Costs,5006,Astley Hall,11/02/2015,100809,161.71,Revenue,British Gas Business,22242
Chorley Borough Council,http://statistics.data.gov.uk/id/local-authority/30UE,Unapportionable Central OHeads,1009,Transformation Management,Gas,20014,Energy Costs,5006,Bengal Street,11/02/2015,100809,289.59,Revenue,British Gas Business,22242
Chorley Borough Council,http://statistics.data.gov.uk/id/local-authority/30UE,Community Development,1097,Transformation Management,Gas,20014,Energy Costs,5006,35-39 Market Street,11/02/2015,100809,110.88,Revenue,British Gas Business,22242
Chorley Borough Council,http://statistics.data.gov.uk/id/local-authority/30UE,Democratic Represent and  Mgnt,1007,Transformation Management,Gas,20014,Energy Costs,5006,Coach House,11/02/2015,100809,581.84,Revenue,British Gas Business,22242
Chorley Borough Council,http://statistics.data.gov.uk/id/local-authority/30UE,Democratic Represent and  Mgnt,1007,Transformation Management,Gas,20014,Energy Costs,5006,Coach House,20/02/2015,101161,644.17,Revenue,British Gas Business,22242
Chorley Borough Council,http://statistics.data.gov.uk/id/local-authority/30UE,Community Development,1097,Transformation Management,Gas,20014,Energy Costs,5006,35-39 Market St,20/02/2015,101161,154.89,Revenue,British Gas Business,22242
Chorley Borough Council,http://statistics.data.gov.uk/id/local-authority/30UE,Central Support Services,1009,Transformation Management,Gas,20014,Energy Costs,5006,Bengal St,20/02/2015,101161,329.75,Revenue,British Gas Business,22242
Chorley Borough Council,http://statistics.data.gov.uk/id/local-authority/30UE,Culture & Heritage,1036,Transformation Management,Gas,20014,Energy Costs,5006,Astley Hall,20/02/2015,101161,177.68,Revenue,British Gas Business,22242
Chorley Borough Council,http://statistics.data.gov.uk/id/local-authority/30UE,Democratic Represent and  Mgnt,1007,Transformation Management,Gas,20014,Energy Costs,5006,Clayton Brook,20/02/2015,101161,196.48,Revenue,British Gas Business,22242
Chorley Borough Council,http://statistics.data.gov.uk/id/local-authority/30UE,Democratic Represent and  Mgnt,1007,Transformation Management,Gas,20014,Energy Costs,5006,Astley Village CC,20/02/2015,101161,465.24,Revenue,British Gas Business,22242
Chorley Borough Council,http://statistics.data.gov.uk/id/local-authority/30UE,Democratic Represent and  Mgnt,1007,Transformation Management,Gas,20014,Energy Costs,5006,Astley Hall Farm House,20/02/2015,101161,177.68,Revenue,British Gas Business,22242
Chorley Borough Council,http://statistics.data.gov.uk/id/local-authority/30UE,Recreation & Sport,1037,Transformation Management,Gas,20014,Energy Costs,5006,Eaves Green CC,20/02/2015,101161,233.11,Revenue,British Gas Business,22242
Chorley Borough Council,http://statistics.data.gov.uk/id/local-authority/30UE,Central Support Services,1009,Transformation Management,Gas,20014,Energy Costs,5006,Union Street,20/02/2015,101161,"1,547.99",Revenue,British Gas Business,22242
Chorley Borough Council,http://statistics.data.gov.uk/id/local-authority/30UE,Culture & Heritage,1036,Transformation Management,Gas,20014,Energy Costs,5006,Asltey Hall,20/02/2015,101161,"2,126.77",Revenue,British Gas Business,22242
Chorley Borough Council,http://statistics.data.gov.uk/id/local-authority/30UE,Unapportionable Central OHeads,1009,Transformation Management,Gas,20014,Energy Costs,5006,Town Hall,20/02/2015,101161,"1,870.98",Revenue,British Gas Business,22242
Chorley Borough Council,http://statistics.data.gov.uk/id/local-authority/30UE,Central Support Services,1009,"Customer, ICT & Transactional",Telephones - Rentals,40083,Communication and Computing,5028,recurring,04/02/2015,100655,"2,038.24",Revenue,British Telecommunications Plc,17131
Chorley Borough Council,http://statistics.data.gov.uk/id/local-authority/30UE,Central Support Services,1009,"Customer, ICT & Transactional",Telephones - Calls,40084,Communication and Computing,5028,usage charge,04/02/2015,100655,433.21,Revenue,British Telecommunications Plc,17131
Chorley Borough Council,http://statistics.data.gov.uk/id/local-authority/30UE,Central Support Services,1009,Health Environment & Neighbourhoods,Tools & Equipment - Maintenance,40005,"Equipment, Furniture & Materia",5023,Telephone line rental,11/02/2015,100294,"2,126.88",Revenue,BT Redcare,21115
Chorley Borough Council,http://statistics.data.gov.uk/id/local-authority/30UE,Capital,Capital,Streetscene & Leisure Contracts,Main Contractor,3007,Capital Expenditure,Capital,"20 tonne MOT Type 1 for delivery to Jubilee Recreation Ground, Station Road, Adlington, Chorley, Lancs, PR7 4LA ",13/02/2015,100650,270.00,Capital,Burt Wesley & Sons ltd,67887
Chorley Borough Council,http://statistics.data.gov.uk/id/local-authority/30UE,Capital,Capital,Streetscene & Leisure Contracts,Main Contractor,3007,Capital Expenditure,Capital,"14 tonne MOT and grab wagon - Muck Away. Delivery to Jubilee Recreation Ground, Station Road, Adlington. Fri 6th Feb ",13/02/2015,100824,970.00,Capital,Burt Wesley & Sons ltd,67887
Chorley Borough Council,http://statistics.data.gov.uk/id/local-authority/30UE,Service Management & Support,1009,Streetscene & Leisure Contracts,Supplies-Grounds Maintenance,40025,"Equipment, Furniture & Materia",5023,Highway C2 fast setting mortar delivered,13/02/2015,100851,412.00,Revenue,C & W BERRY LIMITED,18180
Chorley Borough Council,http://statistics.data.gov.uk/id/local-authority/30UE,Service Management & Support,1009,Streetscene & Leisure Contracts,External Contractor,40198,Miscellaneous Expenses,5034,Carryout tracing of ducting as requested at Bengal St depot,13/02/2015,100669,120.00,Revenue,C J Lyon,16579
Chorley Borough Council,http://statistics.data.gov.uk/id/local-authority/30UE,Service Management & Support,1009,Streetscene & Leisure Contracts,External Contractor,40198,Miscellaneous Expenses,5034,Carryout jetting works at Jubilee playing fields as requested,13/02/2015,100669,180.00,Revenue,C J Lyon,16579
Chorley Borough Council,http://statistics.data.gov.uk/id/local-authority/30UE,Unapportionable Central OHeads,1009,Streetscene & Leisure Contracts,Refuse Collection,20037,Cleaning and Domestic Supplies,5012,Carryout emptying of interceptor and gullies at Bengal St depot at price quoted,13/02/2015,100889,300.00,Revenue,C J Lyon,16579
Chorley Borough Council,http://statistics.data.gov.uk/id/local-authority/30UE,Service Management & Support,1009,Streetscene & Leisure Contracts,Vehicle Maintenance,30045,Direct Transport Costs,5016,Carryout service and repairs to vehicle lift at Bengal St as per insurance report,13/02/2015,100931,253.68,Revenue,Calibration & Consultancy Services UK,18882
Chorley Borough Council,http://statistics.data.gov.uk/id/local-authority/30UE,Democratic Represent and  Mgnt,1007,Governance,Mayoral Hospitality,40123,Expenses,5030,Balance for catering at Mayor`s Charity Ball on 6th Feb 2015.,13/02/2015,100850,"1,244.10",Revenue,Camerons Restaurant Ltd,53731
Chorley Borough Council,http://statistics.data.gov.uk/id/local-authority/30UE,Economic Development,1096,Economic Development,Grants To Other Organisations,40127,Grants and Subscriptions,5031,"Buffet x 115, Wine x 9 bottles, Juice x 38 bottles",25/02/2015,101184,"1,043.85",Revenue,Camerons Restaurant Ltd,53731
Chorley Borough Council,http://statistics.data.gov.uk/id/local-authority/30UE,Central Support Services,1009,"Customer, ICT & Transactional",Agency Staff,13000,Direct Employee Expenses,5001,benefits processing,13/02/2015,100517,"5,328.90",Revenue,Capacity Grid,67989
Chorley Borough Council,http://statistics.data.gov.uk/id/local-authority/30UE,Unapportionable Central OHeads,1009,"Customer, ICT & Transactional",Agency Staff,13000,Direct Employee Expenses,5001,Benefits processing work,13/02/2015,100867,"5,302.00",Revenue,Capacity Grid,67989
Chorley Borough Council,http://statistics.data.gov.uk/id/local-authority/30UE,Central Support Services,1009,"Customer, ICT & Transactional",Agency Staff,13000,Direct Employee Expenses,5001,Benefits processing work,27/02/2015,101310,"7,995.00",Revenue,Capacity Grid,67989
Chorley Borough Council,http://statistics.data.gov.uk/id/local-authority/30UE,Economic Development,1096,Policy & Performance,Printing,40043,"Printing, Stationery & General",5026,Growth Deal application assessment,18/02/2015,100477,"5,950.00",Revenue,Cels Business Services Limited,68426
Chorley Borough Council,http://statistics.data.gov.uk/id/local-authority/30UE,Service Management & Support,1009,Streetscene & Leisure Contracts,Supplies-Grounds Maintenance,40025,"Equipment, Furniture & Materia",5023,Supply 2.5 tonnes of 10mm tarmac to be collected by Chorley Council,20/02/2015,101110,314.37,Revenue,CEMEX UK Materials Ltd,16849
Chorley Borough Council,http://statistics.data.gov.uk/id/local-authority/30UE,Service Management & Support,1009,Streetscene & Leisure Contracts,Supplies-Grounds Maintenance,40025,"Equipment, Furniture & Materia",5023,Supply 5 tonne of 10mm tarmac to be collected by Chorley Council,20/02/2015,101111,621.47,Revenue,CEMEX UK Materials Ltd,16849
Chorley Borough Council,http://statistics.data.gov.uk/id/local-authority/30UE,Parking Services,1066,Streetscene & Leisure Contracts,External Contractors,50008,Private Contractors,5042,Merchant ID charges by HSBC for 2014 /15,20/02/2015,100796,300.35,Revenue,Chipside Ltd,22063
Chorley Borough Council,http://statistics.data.gov.uk/id/local-authority/30UE,Parking Services,1066,Streetscene & Leisure Contracts,External Contractors,50008,Private Contractors,5042,Provision of Notice Processing services as agreed in Lancashire contract. 320 PCNs per month @ 2.90 per ticket.,11/02/2015,100797,273.73,Revenue,Chipside Ltd,22063
Chorley Borough Council,http://statistics.data.gov.uk/id/local-authority/30UE,Parking Services,1066,Streetscene & Leisure Contracts,External Contractors,50008,Private Contractors,5042,Provision of Notice Processing services as agreed in Lancashire contract. 320 PCNs per month @ 2.90 per ticket. ,11/02/2015,100798,"2,797.52",Revenue,Chipside Ltd,22063
Chorley Borough Council,http://statistics.data.gov.uk/id/local-authority/30UE,Central Support Services,1009,Health Environment & Neighbourhoods,Other Contributions,40145,Grants and Subscriptions,5031,Grant funding to support the Chorley & District Sports Forum for 2014/15,13/02/2015,100923,"2,000.00",Revenue,Chorley & Dist Sports Forum,17713
Chorley Borough Council,http://statistics.data.gov.uk/id/local-authority/30UE,Regulatory Services,1048,Health Environment & Neighbourhoods,Taxi Testing & Vehicle Safety Report,40234,Services,5027,MOT,20/02/2015,101138,877.60,Revenue,Chorley Autocare Ltd,17110
Chorley Borough Council,http://statistics.data.gov.uk/id/local-authority/30UE,Corporate Management,1008,Health Environment & Neighbourhoods,Taxi Testing & Vehicle Safety Report,40234,Services,5027,Taxi Test,20/02/2015,101138,136.80,Revenue,Chorley Autocare Ltd,17110
Chorley Borough Council,http://statistics.data.gov.uk/id/local-authority/30UE,Democratic Represent and  Mgnt,1007,Chief Executives Office,Use Of Transport - Mayoral Car,30015,Transport Recharges,5017,Mayoral Car Wash,20/02/2015,101162,4.17,Revenue,Chorley BC Petty Cash,16301
Chorley Borough Council,http://statistics.data.gov.uk/id/local-authority/30UE,Democratic Represent and  Mgnt,1007,Chief Executives Office,Tools & Equipment - Purchase,40003,"Equipment, Furniture & Materia",5023,Christmas Tree Lights for Lancastrian,20/02/2015,101162,24.99,Revenue,Chorley BC Petty Cash,16301
Chorley Borough Council,http://statistics.data.gov.uk/id/local-authority/30UE,Service Management & Support,1009,Chief Executives Office,Petrol,30005,Direct Transport Costs,5016,Fuel for Streetscene Vehicle,20/02/2015,101162,20.11,Revenue,Chorley BC Petty Cash,16301
Chorley Borough Council,http://statistics.data.gov.uk/id/local-authority/30UE,Development Control,1091,Chief Executives Office,Stationery,40050,"Printing, Stationery & General",5026,Masking Tape,20/02/2015,101162,0.83,Revenue,Chorley BC Petty Cash,16301
Chorley Borough Council,http://statistics.data.gov.uk/id/local-authority/30UE,Building Control,1090,Chief Executives Office,Stationery,40050,"Printing, Stationery & General",5026,Building Control Diaries,20/02/2015,101162,5.83,Revenue,Chorley BC Petty Cash,16301
Chorley Borough Council,http://statistics.data.gov.uk/id/local-authority/30UE,Development Control,1091,Chief Executives Office,Stationery,40050,"Printing, Stationery & General",5026,Developement Control Diaries,20/02/2015,101162,9.17,Revenue,Chorley BC Petty Cash,16301
Chorley Borough Council,http://statistics.data.gov.uk/id/local-authority/30UE,Democratic Represent and  Mgnt,1007,Chief Executives Office,Tools & Equipment - Purchase,40003,"Equipment, Furniture & Materia",5023,Fridge Freezer Thermomiter and Batteries,20/02/2015,101162,4.98,Revenue,Chorley BC Petty Cash,16301
Chorley Borough Council,http://statistics.data.gov.uk/id/local-authority/30UE,Elections,1012,Chief Executives Office,Stationery,40050,"Printing, Stationery & General",5026,2 x Daily Tear Off Calendars,20/02/2015,101162,8.73,Revenue,Chorley BC Petty Cash,16301
Chorley Borough Council,http://statistics.data.gov.uk/id/local-authority/30UE,Central Support Services,1009,Chief Executives Office,Games/Playing Field Equipment,40009,"Equipment, Furniture & Materia",5023,Whistles for Couch to 5K,20/02/2015,101162,15.40,Revenue,Chorley BC Petty Cash,16301
Chorley Borough Council,http://statistics.data.gov.uk/id/local-authority/30UE,Unapportionable Central OHeads,1009,Chief Executives Office,Tools & Equipment - Purchase,40003,"Equipment, Furniture & Materia",5023,2 x Washing up Bowls,20/02/2015,101162,3.00,Revenue,Chorley BC Petty Cash,16301
Chorley Borough Council,http://statistics.data.gov.uk/id/local-authority/30UE,Central Support Services,1009,Chief Executives Office,Community Develop Initiatives,40185,Miscellaneous Expenses,5034,Misc Items for Project Coffee Club,20/02/2015,101162,6.22,Revenue,Chorley BC Petty Cash,16301
Chorley Borough Council,http://statistics.data.gov.uk/id/local-authority/30UE,Central Support Services,1009,Chief Executives Office,Community Develop Initiatives,40185,Miscellaneous Expenses,5034,Primrose Hill Poster Campaign,20/02/2015,101162,4.16,Revenue,Chorley BC Petty Cash,16301
Chorley Borough Council,http://statistics.data.gov.uk/id/local-authority/30UE,Central Support Services,1009,Chief Executives Office,Community Develop Initiatives,40185,Miscellaneous Expenses,5034,Cake Decorating Session,20/02/2015,101162,4.96,Revenue,Chorley BC Petty Cash,16301
Chorley Borough Council,http://statistics.data.gov.uk/id/local-authority/30UE,Democratic Represent and  Mgnt,1007,Chief Executives Office,Tools & Equipment - Purchase,40003,"Equipment, Furniture & Materia",5023,Orange Juice for Lancastrian Event,20/02/2015,101162,7.00,Revenue,Chorley BC Petty Cash,16301
Chorley Borough Council,http://statistics.data.gov.uk/id/local-authority/30UE,Central Support Services,1009,Chief Executives Office,Games/Playing Field Equipment,40009,"Equipment, Furniture & Materia",5023,Plastic Wallets for US Girls Session,20/02/2015,101162,6.60,Revenue,Chorley BC Petty Cash,16301
Chorley Borough Council,http://statistics.data.gov.uk/id/local-authority/30UE,Central Support Services,1009,Chief Executives Office,Stationery,40050,"Printing, Stationery & General",5026,1 Diary,20/02/2015,101162,0.83,Revenue,Chorley BC Petty Cash,16301
Chorley Borough Council,http://statistics.data.gov.uk/id/local-authority/30UE,Democratic Represent and  Mgnt,1007,Chief Executives Office,Refreshments,40036,Catering,5024,Milk for Event,20/02/2015,101162,1.39,Revenue,Chorley BC Petty Cash,16301
Chorley Borough Council,http://statistics.data.gov.uk/id/local-authority/30UE,Democratic Represent and  Mgnt,1007,Chief Executives Office,Tools & Equipment - Purchase,40003,"Equipment, Furniture & Materia",5023,Tea Lights for Lancastrian,20/02/2015,101162,3.33,Revenue,Chorley BC Petty Cash,16301
Chorley Borough Council,http://statistics.data.gov.uk/id/local-authority/30UE,Central Support Services,1009,Chief Executives Office,Games/Playing Field Equipment,40009,"Equipment, Furniture & Materia",5023,Materials for US Girls DSC,20/02/2015,101162,13.44,Revenue,Chorley BC Petty Cash,16301
Chorley Borough Council,http://statistics.data.gov.uk/id/local-authority/30UE,Unapportionable Central OHeads,1009,Chief Executives Office,Computer Equipment-Purchase,40098,Communication and Computing,5028,Mouse for Computer,20/02/2015,101162,8.33,Revenue,Chorley BC Petty Cash,16301
Chorley Borough Council,http://statistics.data.gov.uk/id/local-authority/30UE,Democratic Represent and  Mgnt,1007,Chief Executives Office,Refreshments,40036,Catering,5024,Milk for Lancastrian,20/02/2015,101162,4.17,Revenue,Chorley BC Petty Cash,16301
Chorley Borough Council,http://statistics.data.gov.uk/id/local-authority/30UE,Culture & Heritage,1036,Chief Executives Office,Tools & Equipment - Purchase,40003,"Equipment, Furniture & Materia",5023,Sledge Hammer for Astley Hall,20/02/2015,101162,16.66,Revenue,Chorley BC Petty Cash,16301
Chorley Borough Council,http://statistics.data.gov.uk/id/local-authority/30UE,Unapportionable Central OHeads,1009,Chief Executives Office,Tools & Equipment - Purchase,40003,"Equipment, Furniture & Materia",5023,Measuring Tape,20/02/2015,101162,5.83,Revenue,Chorley BC Petty Cash,16301
Chorley Borough Council,http://statistics.data.gov.uk/id/local-authority/30UE,Democratic Represent and  Mgnt,1007,Chief Executives Office,Use Of Transport - Mayoral Car,30015,Transport Recharges,5017,Maroyal Car Wash,20/02/2015,101162,2.92,Revenue,Chorley BC Petty Cash,16301
Chorley Borough Council,http://statistics.data.gov.uk/id/local-authority/30UE,Central Support Services,1009,Chief Executives Office,Games/Playing Field Equipment,40009,"Equipment, Furniture & Materia",5023,Refreshments US Girls Project,20/02/2015,101162,1.90,Revenue,Chorley BC Petty Cash,16301
Chorley Borough Council,http://statistics.data.gov.uk/id/local-authority/30UE,Central Support Services,1009,Chief Executives Office,Games/Playing Field Equipment,40009,"Equipment, Furniture & Materia",5023,Refreshments US Girls Project,20/02/2015,101162,4.90,Revenue,Chorley BC Petty Cash,16301
Chorley Borough Council,http://statistics.data.gov.uk/id/local-authority/30UE,Central Support Services,1009,Chief Executives Office,Games/Playing Field Equipment,40009,"Equipment, Furniture & Materia",5023,Refreshments US Girls Project,20/02/2015,101162,2.89,Revenue,Chorley BC Petty Cash,16301
Chorley Borough Council,http://statistics.data.gov.uk/id/local-authority/30UE,Central Support Services,1009,Chief Executives Office,Games/Playing Field Equipment,40009,"Equipment, Furniture & Materia",5023,Refreshments US Girls Project,20/02/2015,101162,12.24,Revenue,Chorley BC Petty Cash,16301
Chorley Borough Council,http://statistics.data.gov.uk/id/local-authority/30UE,Unapportionable Central OHeads,1009,Chief Executives Office,Stationery,40050,"Printing, Stationery & General",5026,2 x Fairtrade Certificates,20/02/2015,101162,3.00,Revenue,Chorley BC Petty Cash,16301
Chorley Borough Council,http://statistics.data.gov.uk/id/local-authority/30UE,Unapportionable Central OHeads,1009,Chief Executives Office,Tools & Equipment - Purchase,40003,"Equipment, Furniture & Materia",5023,5 x A4 Folders for Lancastrian Training,20/02/2015,101162,8.30,Revenue,Chorley BC Petty Cash,16301
Chorley Borough Council,http://statistics.data.gov.uk/id/local-authority/30UE,Central Support Services,1009,Chief Executives Office,Computer Equipment-Purchase,40098,Communication and Computing,5028,2 x Desk Phones,20/02/2015,101162,11.65,Revenue,Chorley BC Petty Cash,16301
Chorley Borough Council,http://statistics.data.gov.uk/id/local-authority/30UE,Democratic Represent and  Mgnt,1007,Chief Executives Office,Use Of Transport - Mayoral Car,30015,Transport Recharges,5017,Mayoral Car Wash,20/02/2015,101162,2.92,Revenue,Chorley BC Petty Cash,16301
Chorley Borough Council,http://statistics.data.gov.uk/id/local-authority/30UE,Central Support Services,1009,Chief Executives Office,Tools & Equipment - Purchase,40003,"Equipment, Furniture & Materia",5023,White Spirit & Sticky Stuff Removal,20/02/2015,101162,6.13,Revenue,Chorley BC Petty Cash,16301
Chorley Borough Council,http://statistics.data.gov.uk/id/local-authority/30UE,Central Support Services,1009,Chief Executives Office,Games/Playing Field Equipment,40009,"Equipment, Furniture & Materia",5023,US Girls Nails Equpiment,20/02/2015,101162,13.13,Revenue,Chorley BC Petty Cash,16301
Chorley Borough Council,http://statistics.data.gov.uk/id/local-authority/30UE,Central Support Services,1009,Chief Executives Office,Children's Activities,40188,Miscellaneous Expenses,5034,Milk for Tea Dance,20/02/2015,101162,3.56,Revenue,Chorley BC Petty Cash,16301
Chorley Borough Council,http://statistics.data.gov.uk/id/local-authority/30UE,Democratic Represent and  Mgnt,1007,Chief Executives Office,Tools & Equipment - Purchase,40003,"Equipment, Furniture & Materia",5023,CD and Tea Lights for Lancastrian events,20/02/2015,101162,4.17,Revenue,Chorley BC Petty Cash,16301
Chorley Borough Council,http://statistics.data.gov.uk/id/local-authority/30UE,Central Support Services,1009,Chief Executives Office,Community Develop Initiatives,40185,Miscellaneous Expenses,5034,Wheel Castors/Clip Twist Wire/Corner Braces,20/02/2015,101162,13.85,Revenue,Chorley BC Petty Cash,16301
Chorley Borough Council,http://statistics.data.gov.uk/id/local-authority/30UE,Central Support Services,1009,Chief Executives Office,Community Develop Initiatives,40185,Miscellaneous Expenses,5034,Fairtrade Items for Social Event,20/02/2015,101162,7.91,Revenue,Chorley BC Petty Cash,16301
Chorley Borough Council,http://statistics.data.gov.uk/id/local-authority/30UE,Central Support Services,1009,Chief Executives Office,Community Develop Initiatives,40185,Miscellaneous Expenses,5034,Refreshments for Social Isolation Project Session,20/02/2015,101162,3.98,Revenue,Chorley BC Petty Cash,16301
Chorley Borough Council,http://statistics.data.gov.uk/id/local-authority/30UE,Central Support Services,1009,Chief Executives Office,Community Develop Initiatives,40185,Miscellaneous Expenses,5034,Craft Items for Social Isolation Project Session,20/02/2015,101162,12.99,Revenue,Chorley BC Petty Cash,16301
Chorley Borough Council,http://statistics.data.gov.uk/id/local-authority/30UE,Central Support Services,1009,Chief Executives Office,Play Development,40182,Miscellaneous Expenses,5034,Items for Reach up and Go Chill Out Pizza Making Session,20/02/2015,101162,8.53,Revenue,Chorley BC Petty Cash,16301
Chorley Borough Council,http://statistics.data.gov.uk/id/local-authority/30UE,Central Support Services,1009,Chief Executives Office,Community Develop Initiatives,40185,Miscellaneous Expenses,5034,Items for Social Isolation Project,20/02/2015,101162,11.59,Revenue,Chorley BC Petty Cash,16301
Chorley Borough Council,http://statistics.data.gov.uk/id/local-authority/30UE,Central Support Services,1009,Chief Executives Office,Community Develop Initiatives,40185,Miscellaneous Expenses,5034,Food Items for US Girls Project,20/02/2015,101162,10.82,Revenue,Chorley BC Petty Cash,16301
Chorley Borough Council,http://statistics.data.gov.uk/id/local-authority/30UE,Central Support Services,1009,Chief Executives Office,Community Develop Initiatives,40185,Miscellaneous Expenses,5034,Refreshments for US Girls Project,20/02/2015,101162,5.74,Revenue,Chorley BC Petty Cash,16301
Chorley Borough Council,http://statistics.data.gov.uk/id/local-authority/30UE,Unapportionable Central OHeads,1009,Chief Executives Office,Tools & Equipment - Purchase,40003,"Equipment, Furniture & Materia",5023,Batteries for Lancastrian Walkie Talkies,20/02/2015,101162,6.65,Revenue,Chorley BC Petty Cash,16301
Chorley Borough Council,http://statistics.data.gov.uk/id/local-authority/30UE,Unapportionable Central OHeads,1009,Chief Executives Office,Tools & Equipment - Purchase,40003,"Equipment, Furniture & Materia",5023,WD40 and Tub of Grease,20/02/2015,101162,9.17,Revenue,Chorley BC Petty Cash,16301
Chorley Borough Council,http://statistics.data.gov.uk/id/local-authority/30UE,Corporate Management,1008,Chief Executives Office,Exhibitions & Special Events,40158,Miscellaneous Expenses,5034,Red Bucket for Valentines Day Promotion,20/02/2015,101162,1.50,Revenue,Chorley BC Petty Cash,16301
Chorley Borough Council,http://statistics.data.gov.uk/id/local-authority/30UE,Democratic Represent and  Mgnt,1007,Chief Executives Office,Use Of Transport - Mayoral Car,30015,Transport Recharges,5017,Fuel for Mayoral Car and Car Parking for Mayoral Car,20/02/2015,101162,19.04,Revenue,Chorley BC Petty Cash,16301
Chorley Borough Council,http://statistics.data.gov.uk/id/local-authority/30UE,Central Support Services,1009,Chief Executives Office,Uniforms,40039,"Clothing, Uniforms and Laundry",5025,Uniform Dry Cleaning,20/02/2015,101162,11.63,Revenue,Chorley BC Petty Cash,16301
Chorley Borough Council,http://statistics.data.gov.uk/id/local-authority/30UE,Democratic Represent and  Mgnt,1007,Chief Executives Office,Use Of Transport - Mayoral Car,30015,Transport Recharges,5017,Mayoral Car Wash,20/02/2015,101162,5.83,Revenue,Chorley BC Petty Cash,16301
Chorley Borough Council,http://statistics.data.gov.uk/id/local-authority/30UE,Central Support Services,1009,Shared Service Arrangement,Publications,40054,"Printing, Stationery & General",5026,Cash Flow Statement Toolkit for Practitioners in Local Authorities 2015 Update,27/02/2015,101246,500.00,Revenue,CIPFA Business Ltd,16247
Chorley Borough Council,http://statistics.data.gov.uk/id/local-authority/30UE,Economic Development,1096,Economic Development,Tools & Equipment - Maintenance,40005,"Equipment, Furniture & Materia",5023,Please supply as follows: 6 - Outer Legs (exlcl bracket),18/02/2015,100829,150.00,Revenue,City B Group Ltd,47300
Chorley Borough Council,http://statistics.data.gov.uk/id/local-authority/30UE,Economic Development,1096,Economic Development,Tools & Equipment - Maintenance,40005,"Equipment, Furniture & Materia",5023,8 - Corner Feet @  25 each  inc leg and corner foot as it is welded to the leg,18/02/2015,100829,200.00,Revenue,City B Group Ltd,47300
Chorley Borough Council,http://statistics.data.gov.uk/id/local-authority/30UE,Economic Development,1096,Economic Development,Tools & Equipment - Maintenance,40005,"Equipment, Furniture & Materia",5023,4 - 3way Oval Bracket,18/02/2015,100829,30.00,Revenue,City B Group Ltd,47300
Chorley Borough Council,http://statistics.data.gov.uk/id/local-authority/30UE,Economic Development,1096,Economic Development,Tools & Equipment - Maintenance,40005,"Equipment, Furniture & Materia",5023,5  - Corner Bottom Brackets,18/02/2015,100829,75.00,Revenue,City B Group Ltd,47300
Chorley Borough Council,http://statistics.data.gov.uk/id/local-authority/30UE,Economic Development,1096,Economic Development,Tools & Equipment - Maintenance,40005,"Equipment, Furniture & Materia",5023,2 - 3x3 Canopies � Unbranded,18/02/2015,100829,470.00,Revenue,City B Group Ltd,47300
Chorley Borough Council,http://statistics.data.gov.uk/id/local-authority/30UE,Unapportionable Central OHeads,1009,Shared Service Arrangement,IT Software - Annual Licences,40101,Communication and Computing,5028,Authority Financials System - 1 April 2015 to 31 March 2016,25/02/2015,101107,"37,519.04",Revenue,Civica UK Limited,17463
Chorley Borough Council,http://statistics.data.gov.uk/id/local-authority/30UE,Central Support Services,1009,Shared Service Arrangement,IT Software - Annual Licences,40101,Communication and Computing,5028,Financials e-modules 1 April 2015 to 31 March 2016,25/02/2015,101108,"5,247.99",Revenue,Civica UK Limited,17463
Chorley Borough Council,http://statistics.data.gov.uk/id/local-authority/30UE,Unapportionable Central OHeads,1009,Shared Service Arrangement,IT Software - Annual Licences,40101,Communication and Computing,5028,Financials e-modules to 1 April 2014 to 31 March 2015,25/02/2015,101109,"5,130.00",Revenue,Civica UK Limited,17463
Chorley Borough Council,http://statistics.data.gov.uk/id/local-authority/30UE,Central Support Services,1009,Transformation Management,General Repairs - Reactive,20004,Repairs Maintenance & Alts,5005,Reactive repairs for six months until March 2015.,18/02/2015,100662,"1,313.26",Revenue,Classic Lifts Limited,20897
Chorley Borough Council,http://statistics.data.gov.uk/id/local-authority/30UE,Culture & Heritage,1036,Streetscene & Leisure Contracts,Exhibitions,40176,Miscellaneous Expenses,5034,Deposit for display case - Astley Hall,25/02/2015,100974,"1,041.25",Revenue,ClickNetherfield Ltd,66887
Chorley Borough Council,http://statistics.data.gov.uk/id/local-authority/30UE,Service Management & Support,1009,Streetscene & Leisure Contracts,Transport Operating Leases,30029,Contrct Hire & Operating Lease,5018,Purchase of Mega Truck Dropside Tipper MX06 UKJ,13/02/2015,100814,450.00,Revenue,Columbus Trading Limited,20731
Chorley Borough Council,http://statistics.data.gov.uk/id/local-authority/30UE,Public Transport,1067,Streetscene & Leisure Contracts,Bus Shelters -Maintenance,20062,Grounds Maintenance Costs,5013,Supply and install bus shelter as per your quote reference No 15904/2014 on Clayton Brook Rd near lamp column 73. ,13/02/2015,100972,"1,475.00",Revenue,Commutaports,56228
Chorley Borough Council,http://statistics.data.gov.uk/id/local-authority/30UE,Public Transport,1067,Streetscene & Leisure Contracts,Bus Shelters -Maintenance,20062,Grounds Maintenance Costs,5013,Supply and install new bus shelter as per quote reference No 15609/2014 at Brook St Chorley.,13/02/2015,100972,"1,575.00",Revenue,Commutaports,56228
Chorley Borough Council,http://statistics.data.gov.uk/id/local-authority/30UE,Business Support,1095,Transformation Management,Gas,20014,Energy Costs,5006,Blanket order for gas supply to 17-23 Gillibrand Street offices until 31/3/15.,11/02/2015,100326,482.72,Revenue,Corona Energy Retail 2 Ltd,67249
Chorley Borough Council,http://statistics.data.gov.uk/id/local-authority/30UE,Central Support Services,1009,Health Environment & Neighbourhoods,Sports Development Initiatives,40186,Miscellaneous Expenses,5034,Delivery of dance classes,18/02/2015,100927,400.00,Revenue,Dance with Passion,48513
Chorley Borough Council,http://statistics.data.gov.uk/id/local-authority/30UE,Elections,1012,Governance,Canvass Payments,40081,Services,5027,"extra stage of canvass to promote registration Canvas 4329 HEF�s at 1.50 each Canvas 5230 ITR�s at 95p each",11/02/2015,100863,"5,731.00",Revenue,DATA TRACKING LTD,67068
Chorley Borough Council,http://statistics.data.gov.uk/id/local-authority/30UE,Elections,1012,Governance,Canvass Payments,40081,Services,5027,canvass of empty properties in the Borough and encourage completion of ITR,27/02/2015,101245,"5,275.00",Revenue,DATA TRACKING LTD,67068
Chorley Borough Council,http://statistics.data.gov.uk/id/local-authority/30UE,Service Management & Support,1009,Streetscene & Leisure Contracts,Tools & Equipment - Maintenance,40005,"Equipment, Furniture & Materia",5023,Repairs to BR430 blower as per Delivery note No 012613 already supplied,25/02/2015,101203,29.23,Revenue,Dick Leigh,17138
Chorley Borough Council,http://statistics.data.gov.uk/id/local-authority/30UE,Service Management & Support,1009,Streetscene & Leisure Contracts,Tools & Equipment - Maintenance,40005,"Equipment, Furniture & Materia",5023,Supply parts as per Delivery Note No 012612,25/02/2015,101203,273.82,Revenue,Dick Leigh,17138
Chorley Borough Council,http://statistics.data.gov.uk/id/local-authority/30UE,Unapportionable Central OHeads,1009,Transformation Management,General Repairs - Reactive,20004,Repairs Maintenance & Alts,5005,Installation of disabled toilet facility at Age Concern.,20/02/2015,100823,"7,465.00",Revenue,Duxbury Builders Limited,65083
Chorley Borough Council,http://statistics.data.gov.uk/id/local-authority/30UE,Central Support Services,1009,Transformation Management,General Repairs - Reactive,20004,Repairs Maintenance & Alts,5005,Blanket order for soil analysis at Bengal Street Depot.,18/02/2015,100805,587.50,Revenue,Ecofficiency Ltd,68710
Chorley Borough Council,http://statistics.data.gov.uk/id/local-authority/30UE,Central Support Services,1009,"Customer, ICT & Transactional",Consultants` Fees,40077,Services,5027,"File integration - 4 days for planning portal, 2 days for MyPlanning and 2 days for MyPics",11/02/2015,100694,"3,200.00",Revenue,EDM Consulting Ltd,55511
Chorley Borough Council,http://statistics.data.gov.uk/id/local-authority/30UE,Central Support Services,1009,"Customer, ICT & Transactional",Consultants` Fees,40077,Services,5027,Planning workflow for DC and BC,11/02/2015,100695,"2,000.00",Revenue,EDM Consulting Ltd,55511
Chorley Borough Council,http://statistics.data.gov.uk/id/local-authority/30UE,Central Support Services,1009,"Customer, ICT & Transactional",Consultants` Fees,40077,Services,5027,1 day consultancy to resolve issues with GIM,11/02/2015,100698,400.00,Revenue,EDM Consulting Ltd,55511
Chorley Borough Council,http://statistics.data.gov.uk/id/local-authority/30UE,Central Support Services,1009,"Customer, ICT & Transactional",Consultants` Fees,40077,Services,5027,1 day to implement real time look up between Anite and Academy,11/02/2015,100699,400.00,Revenue,EDM Consulting Ltd,55511
Chorley Borough Council,http://statistics.data.gov.uk/id/local-authority/30UE,Central Support Services,1009,Transformation Management,Planned Maintenance,20006,Repairs Maintenance & Alts,5005,Blanket order for PPM works until 31/3/15.,18/02/2015,100763,"1,271.80",Revenue,Electrical Installation & Appliance Testing UK Ltd,67526
Chorley Borough Council,http://statistics.data.gov.uk/id/local-authority/30UE,Unapportionable Central OHeads,1009,Transformation Management,Planned Maintenance,20006,Repairs Maintenance & Alts,5005,Blanket order for PPM works until 31/3/15.,18/02/2015,100768,726.80,Revenue,Electrical Installation & Appliance Testing UK Ltd,67526
Chorley Borough Council,http://statistics.data.gov.uk/id/local-authority/30UE,Unapportionable Central OHeads,1009,Transformation Management,General Repairs - Reactive,20004,Repairs Maintenance & Alts,5005,Reactive repairs for six months until March 2015.,18/02/2015,100745,447.99,Revenue,Ellesmere Engineering Co Ltd,17520
Chorley Borough Council,http://statistics.data.gov.uk/id/local-authority/30UE,Capital,Capital,Streetscene & Leisure Contracts,Main Contractor,3007,Capital Expenditure,Capital,Civil engineering and landscaping works at Rangletts Recreation Ground,20/02/2015,100973,"53,048.46",Capital,English Landscapes Ltd,67982
Chorley Borough Council,http://statistics.data.gov.uk/id/local-authority/30UE,Central Support Services,1009,Transformation Management,General Repairs - Reactive,20004,Repairs Maintenance & Alts,5005,Reactive works until 31/3/15.,04/02/2015,99699,340.00,Revenue,Eurosafe Solutions Limited,66302
Chorley Borough Council,http://statistics.data.gov.uk/id/local-authority/30UE,Capital,Capital,Streetscene & Leisure Contracts,Main Contractor,3007,Capital Expenditure,Capital,60nr Taxus Baccata. Size 100/125cm.  Delivery to Bengal Street Depot week commencing 16th Feb.  Please confirm ,20/02/2015,101166,714.00,Capital,Everglades Nurseries Ltd,20202
Chorley Borough Council,http://statistics.data.gov.uk/id/local-authority/30UE,Service Management & Support,1009,Streetscene & Leisure Contracts,Tools & Equipment - Maintenance,40005,"Equipment, Furniture & Materia",5023,Supply items as on Email from on Pro-forma No 100810 already supplied to include coil for Honda engine,13/02/2015,100676,409.19,Revenue,F R Sharrock Ltd,18091
Chorley Borough Council,http://statistics.data.gov.uk/id/local-authority/30UE,Service Management & Support,1009,Streetscene & Leisure Contracts,Hire Of Transport,30028,Contrct Hire & Operating Lease,5018,Hire of Case tractor and side arm flail for Chorley Council at price quoted ,25/02/2015,101004,"1,490.76",Revenue,F R Sharrock Ltd,18091
Chorley Borough Council,http://statistics.data.gov.uk/id/local-authority/30UE,Service Management & Support,1009,Streetscene & Leisure Contracts,Tools & Equipment - Maintenance,40005,"Equipment, Furniture & Materia",5023,"Supply items as on Email PTO Guard  WessexWide angle PTO kit3 x bottom blade (Parkway)Blade screws ",20/02/2015,101050,742.16,Revenue,F R Sharrock Ltd,18091
Chorley Borough Council,http://statistics.data.gov.uk/id/local-authority/30UE,Service Management & Support,1009,Streetscene & Leisure Contracts,Vehicle Maintenance,30045,Direct Transport Costs,5016,Carryout 6 weeklysafety inspection on RV14DVB for Olicence compliance,13/02/2015,100828,115.33,Revenue,Freight Transport Assoc Ltd,16333
Chorley Borough Council,http://statistics.data.gov.uk/id/local-authority/30UE,Service Management & Support,1009,Streetscene & Leisure Contracts,Vehicle Maintenance,30045,Direct Transport Costs,5016,Carryout 6 weekly safety inspection on DK05CXG for Olicence compliance,13/02/2015,100828,115.33,Revenue,Freight Transport Assoc Ltd,16333
Chorley Borough Council,http://statistics.data.gov.uk/id/local-authority/30UE,Service Management & Support,1009,Streetscene & Leisure Contracts,Vehicle Maintenance,30045,Direct Transport Costs,5016,Carryout 6 weekly safety inspection on PN02HRL for Olicence compliance,13/02/2015,100828,115.33,Revenue,Freight Transport Assoc Ltd,16333
Chorley Borough Council,http://statistics.data.gov.uk/id/local-authority/30UE,Service Management & Support,1009,Streetscene & Leisure Contracts,Vehicle Maintenance,30045,Direct Transport Costs,5016,Carryout 6 weekly safety inspection on DX55CVG for Olicence compliance,13/02/2015,100828,115.33,Revenue,Freight Transport Assoc Ltd,16333
Chorley Borough Council,http://statistics.data.gov.uk/id/local-authority/30UE,Service Management & Support,1009,Streetscene & Leisure Contracts,Vehicle Maintenance,30045,Direct Transport Costs,5016,Carryout 6 weekly safety inspection on DK56JWO for Olicence compliance,13/02/2015,100828,115.33,Revenue,Freight Transport Assoc Ltd,16333
Chorley Borough Council,http://statistics.data.gov.uk/id/local-authority/30UE,Central Support Services,1009,Health Environment & Neighbourhoods,Miscellaneous Expenses,40200,Miscellaneous Expenses,5034,match funding towards bid for access improvements to healey nab,27/02/2015,101304,"5,000.00",Revenue,Friends of Healey Nab,22559
Chorley Borough Council,http://statistics.data.gov.uk/id/local-authority/30UE,Democratic Represent and  Mgnt,1007,Streetscene & Leisure Contracts,Security Service,40062,Services,5027,All Seasons,13/02/2015,100991,142.96,Revenue,G4S Cash Solutions UK Ltd,22099
Chorley Borough Council,http://statistics.data.gov.uk/id/local-authority/30UE,Democratic Represent and  Mgnt,1007,Streetscene & Leisure Contracts,Security Service,40062,Services,5027,Brinscall Swimming Pool,13/02/2015,100991,55.97,Revenue,G4S Cash Solutions UK Ltd,22099
Chorley Borough Council,http://statistics.data.gov.uk/id/local-authority/30UE,Unapportionable Central OHeads,1009,Streetscene & Leisure Contracts,Security Service,40062,Services,5027,Civic Offices,13/02/2015,100991,55.97,Revenue,G4S Cash Solutions UK Ltd,22099
Chorley Borough Council,http://statistics.data.gov.uk/id/local-authority/30UE,Democratic Represent and  Mgnt,1007,Streetscene & Leisure Contracts,Security Service,40062,Services,5027,Clayton Green Sport Centre,13/02/2015,100991,55.97,Revenue,G4S Cash Solutions UK Ltd,22099
Chorley Borough Council,http://statistics.data.gov.uk/id/local-authority/30UE,Homelessness,1075,Streetscene & Leisure Contracts,Security Service,40062,Services,5027,Cotswold Housing,13/02/2015,100991,27.97,Revenue,G4S Cash Solutions UK Ltd,22099
Chorley Borough Council,http://statistics.data.gov.uk/id/local-authority/30UE,Culture & Heritage,1036,Streetscene & Leisure Contracts,Burglar Alarms & Security Systems,20075,Fixtures and Fittings,5010,contract 4101679,13/02/2015,100487,727.37,Revenue,G4S Secure Solutions (UK) Ltd,59898
Chorley Borough Council,http://statistics.data.gov.uk/id/local-authority/30UE,Surplus or Deficit on Trading,1019,Governance,Electricity,20013,Energy Costs,5006,26 Gillibrand street,18/02/2015,99899,264.26,Revenue,Gazprom Energy,56502
Chorley Borough Council,http://statistics.data.gov.uk/id/local-authority/30UE,Surplus or Deficit on Trading,1019,Transformation Management,Electricity,20013,Energy Costs,5006,26 Gillibrand Street,18/02/2015,100802,"1,461.15",Revenue,Gazprom Energy,56502
Chorley Borough Council,http://statistics.data.gov.uk/id/local-authority/30UE,Surplus or Deficit on Trading,1019,Transformation Management,Electricity,20013,Energy Costs,5006,26 Gillibrand Street,18/02/2015,100803,506.68,Revenue,Gazprom Energy,56502
Chorley Borough Council,http://statistics.data.gov.uk/id/local-authority/30UE,Surplus or Deficit on Trading,1019,Transformation Management,Electricity,20013,Energy Costs,5006,26 Gillibrand street,20/02/2015,101057,"1,189.32",Revenue,Gazprom Energy,56502
Chorley Borough Council,http://statistics.data.gov.uk/id/local-authority/30UE,Democratic Represent and  Mgnt,1007,Streetscene & Leisure Contracts,Playground Equipment,40008,"Equipment, Furniture & Materia",5023,"1 Climbing Net 1 - 30m aerial runway cable1 - cable trolley1 - Pendulum seat c/w sleeved chain3 - M10 cable clamps",27/02/2015,101266,835.45,Revenue,GB Sport & Leisure,21305
Chorley Borough Council,http://statistics.data.gov.uk/id/local-authority/30UE,Central Support Services,1009,Health Environment & Neighbourhoods,External Contractor,40198,Miscellaneous Expenses,5034,reactive and proactive graffitti removal,04/02/2015,100432,"1,246.87",Revenue,Graffiti Removal (North) Ltd,17320
Chorley Borough Council,http://statistics.data.gov.uk/id/local-authority/30UE,Central Support Services,1009,Shared Service Arrangement,Computer Consumables,40099,Communication and Computing,5028,2 x 401 toner Printer TROY micr 400,18/02/2015,100689,588.00,Revenue,Hague Computer Supplies Ltd,56014
Chorley Borough Council,http://statistics.data.gov.uk/id/local-authority/30UE,Economic Development,1096,Economic Development,Grants To Other Organisations,40127,Grants and Subscriptions,5031,"Images, graphic and text for Choose Chorley showreel",25/02/2015,101190,"1,765.00",Revenue,Heckfords,58862
Chorley Borough Council,http://statistics.data.gov.uk/id/local-authority/30UE,Unapportionable Central OHeads,1009,Transformation Management,General Repairs - Reactive,20004,Repairs Maintenance & Alts,5005,Reactive works for six months until 31/3/15.,18/02/2015,100302,279.00,Revenue,Henry Nightingale & Son,17923
Chorley Borough Council,http://statistics.data.gov.uk/id/local-authority/30UE,Democratic Represent and  Mgnt,1007,Governance,Mayoral Hospitality,40123,Expenses,5030,Venue dressing at the Mayor`s Charity Ball on 6th February 2015,13/02/2015,100948,"1,350.00",Revenue,iCatching Events and Media,65523
Chorley Borough Council,http://statistics.data.gov.uk/id/local-authority/30UE,Unapportionable Central OHeads,1009,Governance,General Subscriptions,40146,Grants and Subscriptions,5031,Iken Annual Licence Fee for 12 months to September 2015,27/02/2015,101191,"2,501.80",Revenue,Iken Business Limited,22068
Chorley Borough Council,http://statistics.data.gov.uk/id/local-authority/30UE,Control Accounts,Control,Shared Service Arrangement,Manual Control Account,1,Balance Sheet,Balance,,11/02/2015,100628,285.00,Revenue,Inland Revenue 065py00102078,17445
Chorley Borough Council,http://statistics.data.gov.uk/id/local-authority/30UE,Central Support Services,1009,HR & Org. Development,Corp Training Organisational Development,17006,Indirect Employee Expenses,5002,Managing Projects Training x 2 Sessions,11/02/2015,100788,"1,130.00",Revenue,Instep UK Ltd,65300
Chorley Borough Council,http://statistics.data.gov.uk/id/local-authority/30UE,Central Support Services,1009,Streetscene & Leisure Contracts,Training Course Fees,17010,Indirect Employee Expenses,5002,"Attendees for `How to plan a safe event` Training programme. DATE: 22/04/2015 &  23/04/2015",25/02/2015,101061,"2,135.00",Revenue,Institute Of Licensing,16987
Chorley Borough Council,http://statistics.data.gov.uk/id/local-authority/30UE,Unapportionable Central OHeads,1009,Streetscene & Leisure Contracts,Training Course Fees,17010,Indirect Employee Expenses,5002,(non-member) - 305,25/02/2015,101061,275.00,Revenue,Institute Of Licensing,16987
Chorley Borough Council,http://statistics.data.gov.uk/id/local-authority/30UE,Service Management & Support,1009,Streetscene & Leisure Contracts,Vehicle Trackers,30046,Direct Transport Costs,5016,Lease of vehicle tracker system from 01/04/2014 through until 31/03/2015,25/02/2015,101135,795.80,Revenue,Investec Asset Finance Plc,53879
Chorley Borough Council,http://statistics.data.gov.uk/id/local-authority/30UE,Corporate Management,1008,Shared Service Arrangement,Employee Related Insurance,18003,Indirect Employee Expenses,5002,Renewal,25/02/2015,101179,"3,997.17",Revenue,JLT Speciality Ltd,52747
Chorley Borough Council,http://statistics.data.gov.uk/id/local-authority/30UE,Corporate Management,1008,Shared Service Arrangement,Employee Related Insurance,18003,Indirect Employee Expenses,5002,Renewal,25/02/2015,101180,795.00,Revenue,JLT Speciality Ltd,52747
Chorley Borough Council,http://statistics.data.gov.uk/id/local-authority/30UE,Service Management & Support,1009,Streetscene & Leisure Contracts,Supplies-Grounds Maintenance,40025,"Equipment, Furniture & Materia",5023,Supply items as per quote number C-002345 for Chorley Council dated 28/11/2014,13/02/2015,100861,770.10,Revenue,John H Mayor & Sons Ltd,16635
Chorley Borough Council,http://statistics.data.gov.uk/id/local-authority/30UE,Development Control,1091,Planning,Statutory Notices,40160,Miscellaneous Expenses,5034,Planning Public Notices to appear in the Chorley Guardian April 2014 - March 2015,18/02/2015,100890,395.52,Revenue,Johnston Publishing Ltd,20072
Chorley Borough Council,http://statistics.data.gov.uk/id/local-authority/30UE,Service Management & Support,1009,Streetscene & Leisure Contracts,Vehicle Maintenance,30045,Direct Transport Costs,5016,Carryout A service on RV14DVB as requested,13/02/2015,100783,432.00,Revenue,Johnston Sweepers Limited,20778
Chorley Borough Council,http://statistics.data.gov.uk/id/local-authority/30UE,Capital,Capital,Streetscene & Leisure Contracts,Main Contractor,3007,Capital Expenditure,Capital,KSW91061-0809 Two bay swing (Birds Nest + 2 flat seats) and leg extensions for installation into bark safety surface. ,13/02/2015,100790,"12,344.76",Capital,JSC Play Services Ltd,56726
Chorley Borough Council,http://statistics.data.gov.uk/id/local-authority/30UE,Service Management & Support,1009,Streetscene & Leisure Contracts,Entry Fees,40237,Miscellaneous Expenses,5034,"Green Flag Application Award Fee for Coronation Recreation Ground, Chorley",13/02/2015,100674,312.00,Revenue,Keep Britain Tidy,22196
Chorley Borough Council,http://statistics.data.gov.uk/id/local-authority/30UE,Service Management & Support,1009,Streetscene & Leisure Contracts,Entry Fees,40237,Miscellaneous Expenses,5034,Green Flag Application Award fee for Yarrow Valley Country Park,13/02/2015,100684,363.00,Revenue,Keep Britain Tidy,22196
Chorley Borough Council,http://statistics.data.gov.uk/id/local-authority/30UE,Service Management & Support,1009,Streetscene & Leisure Contracts,Entry Fees,40237,Miscellaneous Expenses,5034,"Green Flag Application Award Fee for Astley Park, Chorley.",13/02/2015,100685,363.00,Revenue,Keep Britain Tidy,22196
Chorley Borough Council,http://statistics.data.gov.uk/id/local-authority/30UE,Service Management & Support,1009,Streetscene & Leisure Contracts,Entry Fees,40237,Miscellaneous Expenses,5034,"Green Flag Application Award Fee for Withnell Local Nature Reserve, Chorley",13/02/2015,100686,312.00,Revenue,Keep Britain Tidy,22196
Chorley Borough Council,http://statistics.data.gov.uk/id/local-authority/30UE,Service Management & Support,1009,Streetscene & Leisure Contracts,Entry Fees,40237,Miscellaneous Expenses,5034,Green Flag Applicaiton Award fee for Tatton Recreation Ground,13/02/2015,100687,312.00,Revenue,Keep Britain Tidy,22196
Chorley Borough Council,http://statistics.data.gov.uk/id/local-authority/30UE,Homelessness,1075,Housing,External Contractor,40198,Miscellaneous Expenses,5034,Provision of Housing Drop In & Mediation Service to the Young People of Chorley (Quarterly),25/02/2015,100368,"4,750.00",Revenue,Key,61252
Chorley Borough Council,http://statistics.data.gov.uk/id/local-authority/30UE,Central Support Services,1009,Health Environment & Neighbourhoods,Photocopier Consumables,40049,"Printing, Stationery & General",5026,"20,000 letter headed paper",18/02/2015,100841,675.00,Revenue,Lancashire Business Forms Ltd,16665
Chorley Borough Council,http://statistics.data.gov.uk/id/local-authority/30UE,Central Support Services,1009,Streetscene & Leisure Contracts,Miscellaneous Expenses,40200,Miscellaneous Expenses,5034,"Neighbourhood Priority Brinscall footway works at land opposite 122-126 School Laneas agreed ",25/02/2015,99962,"4,486.53",Revenue,Lancashire County Council,17758
Chorley Borough Council,http://statistics.data.gov.uk/id/local-authority/30UE,Development Control,1091,Planning,Professional Fees,40063,Services,5027,Agricultural Planning Consultation Responses on the following applications: - ADDRESSES REDACTED,18/02/2015,100509,"3,200.00",Revenue,Lancashire County Council,17758
Chorley Borough Council,http://statistics.data.gov.uk/id/local-authority/30UE,Development Control,1091,Planning,Consultants` Fees,40077,Services,5027,,04/02/2015,100604,640.00,Revenue,Lancashire County Council,17758
Chorley Borough Council,http://statistics.data.gov.uk/id/local-authority/30UE,Capital,Capital,Health Environment & Neighbourhoods,Other Expenses,3030,Capital Expenditure,Capital,"Replacement lamp column at Grime Street, Chorley.  Installation to include double fuse in base of column",04/02/2015,100708,"1,010.55",Capital,Lancashire County Council,20027
Chorley Borough Council,http://statistics.data.gov.uk/id/local-authority/30UE,Central Support Services,1009,Streetscene & Leisure Contracts,Miscellaneous Expenses,40200,Miscellaneous Expenses,5034,"Monies to be paid to LCC Prevention & Early Help, Chorley Small Grant - Objective 1101331 Flowers Domestic Abuse ",13/02/2015,100787,"2,852.80",Revenue,Lancashire County Council,17758
Chorley Borough Council,http://statistics.data.gov.uk/id/local-authority/30UE,Capital,Capital,Housing,Grants,3002,Capital Expenditure,Capital,ADDRESS REDACTED,25/02/2015,100979,"8,336.00",Capital,Lancashire County Council,17758
Chorley Borough Council,http://statistics.data.gov.uk/id/local-authority/30UE,Capital,Capital,Housing,Grants,3002,Capital Expenditure,Capital,ADDRESS REDACTED,13/02/2015,100980,"2,427.00",Capital,Lancashire County Council,17758
Chorley Borough Council,http://statistics.data.gov.uk/id/local-authority/30UE,Capital,Capital,Housing,Grants,3002,Capital Expenditure,Capital,bentham loxely bluestone lane,13/02/2015,100981,"1,919.00",Capital,Lancashire County Council,17758
Chorley Borough Council,http://statistics.data.gov.uk/id/local-authority/30UE,Capital,Capital,Planning,Other Capital Grants/Loans,3000,Capital Expenditure,Capital,S106 agreement,18/02/2015,100984,"11,153.02",Capital,Lancashire County Council,17758
Chorley Borough Council,http://statistics.data.gov.uk/id/local-authority/30UE,Culture & Heritage,1036,Streetscene & Leisure Contracts,Lifelong Learning Activities,40194,Miscellaneous Expenses,5034,Payment for 4 workshops at 100 each for Astley Hall Museum and Art Gallery,25/02/2015,101036,400.00,Revenue,"Lancashire Family History & Heraldry Society, Chor",22268
Chorley Borough Council,http://statistics.data.gov.uk/id/local-authority/30UE,Corporate Management,1008,Streetscene & Leisure Contracts,Clinical Waste Collection,50007,Private Contractors,5042,Disposal of Clinical waste from Chorley Households.April 2014 to March 2015 yellow bag collections approx 550 per month,04/02/2015,100627,999.02,Revenue,Lancashire Teaching Hospitals NHS FT,19003
Chorley Borough Council,http://statistics.data.gov.uk/id/local-authority/30UE,Corporate Management,1008,Streetscene & Leisure Contracts,Clinical Waste Collection,50007,Private Contractors,5042,Disposal of Clinical waste from Chorley Households.April 2014 to March 2015 yellow bag collections approx 550 per month,11/02/2015,100663,"1,034.55",Revenue,Lancashire Teaching Hospitals NHS FT,19003
Chorley Borough Council,http://statistics.data.gov.uk/id/local-authority/30UE,Central Support Services,1009,Shared Service Arrangement,Training Course Fees,17010,Indirect Employee Expenses,5002,Two delegates on the Understanding the Provisional Local Government Finance Settlement 2015/16 and Preparing 2015/16,11/02/2015,100664,300.00,Revenue,LG Futures,22551
Chorley Borough Council,http://statistics.data.gov.uk/id/local-authority/30UE,Unapportionable Central OHeads,1009,Shared Service Arrangement,General Subscriptions,40146,Grants and Subscriptions,5031,Financial Intelligence Toolkit subscription 2015-16 for South Ribble Borough Council,25/02/2015,101167,"2,285.00",Revenue,LG Futures,22551
Chorley Borough Council,http://statistics.data.gov.uk/id/local-authority/30UE,Unapportionable Central OHeads,1009,Shared Service Arrangement,General Subscriptions,40146,Grants and Subscriptions,5031,Financial Intelligence Toolkit subscription 2015-16 for Chorley Borough Council,25/02/2015,101168,"2,285.00",Revenue,LG Futures,22551
Chorley Borough Council,http://statistics.data.gov.uk/id/local-authority/30UE,Central Support Services,1009,Streetscene & Leisure Contracts,Furniture - Purchase,40012,"Equipment, Furniture & Materia",5023,SOF300T1-C SOFIA MANAGERS FABRIC HIGH BACK CHAIR WITHPUMP UP LUMBAR SUPPORT CHARCOAL,27/02/2015,101280,556.00,Revenue,Lynbrook Office Supplies Ltd,16578
Chorley Borough Council,http://statistics.data.gov.uk/id/local-authority/30UE,Corporate Management,1008,Streetscene & Leisure Contracts,Furniture - Purchase,40012,"Equipment, Furniture & Materia",5023,Avior chair (Special) - blue,27/02/2015,101280,558.00,Revenue,Lynbrook Office Supplies Ltd,16578
Chorley Borough Council,http://statistics.data.gov.uk/id/local-authority/30UE,Corporate Management,1008,Streetscene & Leisure Contracts,Furniture - Purchase,40012,"Equipment, Furniture & Materia",5023,Test drive chairs,12/02/2015,101281,468.00,Revenue,Lynbrook Office Supplies Ltd,16578
Chorley Borough Council,http://statistics.data.gov.uk/id/local-authority/30UE,Economic Development,1096,Economic Development,Grants To Other Organisations,40127,Grants and Subscriptions,5031,Shop front improvement grant,13/02/2015,100921,"1,560.00",Revenue,M & M Sensations,68965
Chorley Borough Council,http://statistics.data.gov.uk/id/local-authority/30UE,Capital,Capital,Housing,Grants,3002,Capital Expenditure,Capital,ADDRESS REDACTED,13/02/2015,101006,"4,195.00",Capital,M.J Park Building Contractors,20367
Chorley Borough Council,http://statistics.data.gov.uk/id/local-authority/30UE,Surplus or Deficit on Trading,1019,Governance,Miscellaneous Expenses,40200,Miscellaneous Expenses,5034,Agents fees in respect of Market Walk Fees due are half share of 15% of headline rent  6 completing imminently at headline,27/02/2015,101286,"2,550.00",Revenue,Mason Partners LLP,64581
Chorley Borough Council,http://statistics.data.gov.uk/id/local-authority/30UE,Central Support Services,1009,Shared Service Arrangement,Agency Staff,13000,Direct Employee Expenses,5001,Service - Finance,18/02/2015,100806,539.38,Revenue,Matrix SCM Ltd,22128
Chorley Borough Council,http://statistics.data.gov.uk/id/local-authority/30UE,Central Support Services,1009,Shared Service Arrangement,Agency Staff,13000,Direct Employee Expenses,5001,Service - Finance,18/02/2015,100988,"1,386.13",Revenue,Matrix SCM Ltd,22128
Chorley Borough Council,http://statistics.data.gov.uk/id/local-authority/30UE,Unapportionable Central OHeads,1009,Shared Service Arrangement,Agency Staff,13000,Direct Employee Expenses,5001,Agency Staff,18/02/2015,101035,521.28,Revenue,Matrix SCM Ltd,22128
Chorley Borough Council,http://statistics.data.gov.uk/id/local-authority/30UE,Democratic Represent and  Mgnt,1007,HR & Org. Development,Agency Staff,13000,Direct Employee Expenses,5001,Agency Staff,25/02/2015,101181,2.15,Revenue,Matrix SCM Ltd,22128
Chorley Borough Council,http://statistics.data.gov.uk/id/local-authority/30UE,Democratic Represent and  Mgnt,1007,HR & Org. Development,Agency Staff,13000,Direct Employee Expenses,5001,Agency Staff,25/02/2015,101181,413.32,Revenue,Matrix SCM Ltd,22128
Chorley Borough Council,http://statistics.data.gov.uk/id/local-authority/30UE,Elections,1012,HR & Org. Development,Agency Staff,13000,Direct Employee Expenses,5001,Agency Staff,25/02/2015,101181,475.76,Revenue,Matrix SCM Ltd,22128
Chorley Borough Council,http://statistics.data.gov.uk/id/local-authority/30UE,Central Support Services,1009,HR & Org. Development,Agency Staff,13000,Direct Employee Expenses,5001,Agency Staff,25/02/2015,101181,524.90,Revenue,Matrix SCM Ltd,22128
Chorley Borough Council,http://statistics.data.gov.uk/id/local-authority/30UE,Central Support Services,1009,Health Environment & Neighbourhoods,External Contractor,40198,Miscellaneous Expenses,5034,Chairship of Adlington Domestic Homicde Review conducted over sevreal meetings and partner contacts 2014/15.,25/02/2015,101112,"2,025.00",Revenue,Maureen Noble,66411
Chorley Borough Council,http://statistics.data.gov.uk/id/local-authority/30UE,Unapportionable Central OHeads,1009,Transformation Management,General Repairs - Reactive,20004,Repairs Maintenance & Alts,5005,Reactive works for six months until 31/3/15.,04/02/2015,100623,460.00,Revenue,Maxigiene Environmental Services Ltd,67160
Chorley Borough Council,http://statistics.data.gov.uk/id/local-authority/30UE,Central Support Services,1009,Transformation Management,General Repairs - Reactive,20004,Repairs Maintenance & Alts,5005,Reactive works for six months until 31/3/15.,04/02/2015,100624,985.00,Revenue,Maxigiene Environmental Services Ltd,67160
Chorley Borough Council,http://statistics.data.gov.uk/id/local-authority/30UE,Central Support Services,1009,Transformation Management,General Repairs - Reactive,20004,Repairs Maintenance & Alts,5005,Blanket order for legionella testing at various site until March 2015.,27/02/2015,101093,"1,587.50",Revenue,Maxigiene Environmental Services Ltd,67160
Chorley Borough Council,http://statistics.data.gov.uk/id/local-authority/30UE,Unapportionable Central OHeads,1009,Transformation Management,General Repairs - Reactive,20004,Repairs Maintenance & Alts,5005,Blanket order for legionella testing at various site until March 2015.,27/02/2015,101094,"1,587.50",Revenue,Maxigiene Environmental Services Ltd,67160
Chorley Borough Council,http://statistics.data.gov.uk/id/local-authority/30UE,Central Support Services,1009,Transformation Management,General Repairs - Reactive,20004,Repairs Maintenance & Alts,5005,Blanket order for legionella testing at various site until March 2015.,27/02/2015,101096,"1,587.50",Revenue,Maxigiene Environmental Services Ltd,67160
Chorley Borough Council,http://statistics.data.gov.uk/id/local-authority/30UE,Service Management & Support,1009,Streetscene & Leisure Contracts,Supplies-Grounds Maintenance,40025,"Equipment, Furniture & Materia",5023,20 ton of ultitrec delivered to Yarrow Valley Park,13/02/2015,100943,374.30,Revenue,Mc & Ma Stewart (Haulage Ltd),16627
Chorley Borough Council,http://statistics.data.gov.uk/id/local-authority/30UE,Service Management & Support,1009,Streetscene & Leisure Contracts,Supplies-Grounds Maintenance,40025,"Equipment, Furniture & Materia",5023,Play sand - tonne bag,13/02/2015,100944,262.50,Revenue,Mc & Ma Stewart (Haulage Ltd),16627
Chorley Borough Council,http://statistics.data.gov.uk/id/local-authority/30UE,Service Management & Support,1009,Streetscene & Leisure Contracts,Supplies-Grounds Maintenance,40025,"Equipment, Furniture & Materia",5023,20mm to dust buff,20/02/2015,101046,358.02,Revenue,Mc & Ma Stewart (Haulage Ltd),16627
Chorley Borough Council,http://statistics.data.gov.uk/id/local-authority/30UE,Unapportionable Central OHeads,1009,Policy & Performance,Exhibitions & Special Events,40158,Miscellaneous Expenses,5034,Walk about heart for Market Walk promotion,20/02/2015,100936,900.00,Revenue,Montana Events,61316
Chorley Borough Council,http://statistics.data.gov.uk/id/local-authority/30UE,Democratic Represent and  Mgnt,1007,Streetscene & Leisure Contracts,Grounds Maintenance Contractor,20043,Grounds Maintenance Costs,5013,Birkacre Reservoir -duties of supervising engineer,13/02/2015,100635,841.40,Revenue,Mott Macdonald Ltd,16200
Chorley Borough Council,http://statistics.data.gov.uk/id/local-authority/30UE,Building Control,1090,Planning,Refunds,40220,Miscellaneous Expenses,5034,refund invoice 4031225,04/02/2015,100625,745.81,Revenue,Mr J M Taggart,68717
Chorley Borough Council,http://statistics.data.gov.uk/id/local-authority/30UE,Control Accounts,Control,Planning,Manual Control Account,1,Balance Sheet,Balance,vat,04/02/2015,100625,149.16,Revenue,Mr J M Taggart,68717
Chorley Borough Council,http://statistics.data.gov.uk/id/local-authority/30UE,Economic Development,1096,Economic Development,Grants To Other Organisations,40127,Grants and Subscriptions,5031,shop floor grant,13/02/2015,100983,"3,000.00",Revenue,Mr James P Wise,68705
Chorley Borough Council,http://statistics.data.gov.uk/id/local-authority/30UE,Private Sector HSG Renewal,1073,Housing,Miscellaneous Expenses,40200,Miscellaneous Expenses,5034,"Provision of Energy Switching Support Service in February 2015, funded by LCC Affordable Warmth Grant",27/02/2015,101308,900.00,Revenue,Mrs Heather Shaw,65606
Chorley Borough Council,http://statistics.data.gov.uk/id/local-authority/30UE,Central Support Services,1009,Health Environment & Neighbourhoods,Training Course Fees,17010,Indirect Employee Expenses,5002,"Taxi  vehicle condition  testing  assessment  course , January 2015 Daventry.",11/02/2015,100346,"1,035.00",Revenue,Naleo,17911
Chorley Borough Council,http://statistics.data.gov.uk/id/local-authority/30UE,Unapportionable Central OHeads,1009,Chief Executives Office,Postages,40082,Communication and Computing,5028,"One instalment of Quarterly Rental one NFS330 Franking Machine, Serial No NE8002360 / DA1243567448 one 2kg Scale",04/02/2015,100578,631.50,Revenue,Nationwide Capital Finance Ltd,21739
Chorley Borough Council,http://statistics.data.gov.uk/id/local-authority/30UE,Central Support Services,1009,Health Environment & Neighbourhoods,Miscellaneous Expenses,40200,Miscellaneous Expenses,5034,"Supply & exchange when required a 35 yard ro ro skip.Delivered to Longacre, Clayton Brook PR5 8HH Required31st Oct14",27/02/2015,99104,490.36,Revenue,Neales Waste Management,17583
Chorley Borough Council,http://statistics.data.gov.uk/id/local-authority/30UE,Central Support Services,1009,Health Environment & Neighbourhoods,Miscellaneous Expenses,40200,Miscellaneous Expenses,5034,"pply skip 35 yard as previous on Saturday 24th January 2015 Deliver to Delamere Place, Chorley",11/02/2015,100854,543.36,Revenue,Neales Waste Management,17583
Chorley Borough Council,http://statistics.data.gov.uk/id/local-authority/30UE,Central Support Services,1009,Health Environment & Neighbourhoods,Miscellaneous Expenses,40200,Miscellaneous Expenses,5034,"Supply 35yard skip as per previous orders on Friday 23rd January 2015 Delivery for 9.30 am - collect from site 2 pm",11/02/2015,100855,609.08,Revenue,Neales Waste Management,17583
Chorley Borough Council,http://statistics.data.gov.uk/id/local-authority/30UE,Service Management & Support,1009,Streetscene & Leisure Contracts,Refuse Collection,20037,Cleaning and Domestic Supplies,5012,Weight charge for green waste from Bengal St depot at price quoted. (Please use this order from 01/04/2014 ),11/02/2015,100887,"2,321.28",Revenue,Neales Waste Management,17583
Chorley Borough Council,http://statistics.data.gov.uk/id/local-authority/30UE,Capital,Capital,Housing,Main Contractor,3007,Capital Expenditure,Capital,"50% of grant for start on site 12 - 14 St Georges St, Chorley, 8 x 1 bedroom flats for Affordable Rent.",25/02/2015,96384,"135,839.50",Capital,New Progress Housing Association Ltd,17922
Chorley Borough Council,http://statistics.data.gov.uk/id/local-authority/30UE,Homelessness,1075,Housing,Grants To Other Organisations,40127,Grants and Subscriptions,5031,SHARED HOUSING PIOLET,25/02/2015,99921,"3,646.75",Revenue,New Progress Housing Association Ltd,17922
Chorley Borough Council,http://statistics.data.gov.uk/id/local-authority/30UE,Regulatory Services,1048,"Customer, ICT & Transactional","Hackney Badges, Plates Etc.",40023,"Equipment, Furniture & Materia",5023,External Licence plate set for Private Hire Vehicle (printed and clear set),27/02/2015,101323,48.16,Revenue,NewAuto Ltd t/a MOGO UK,17187
Chorley Borough Council,http://statistics.data.gov.uk/id/local-authority/30UE,Corporate Management,1008,"Customer, ICT & Transactional","Hackney Badges, Plates Etc.",40023,"Equipment, Furniture & Materia",5023,Private Hire internal plate double sided with MOGLO light emitting panel on one side,27/02/2015,101323,80.92,Revenue,NewAuto Ltd t/a MOGO UK,17187
Chorley Borough Council,http://statistics.data.gov.uk/id/local-authority/30UE,Regulatory Services,1048,"Customer, ICT & Transactional","Hackney Badges, Plates Etc.",40023,"Equipment, Furniture & Materia",5023,Private Hire Door Signs to include tamper evident hologram and cover,27/02/2015,101323,227.04,Revenue,NewAuto Ltd t/a MOGO UK,17187
Chorley Borough Council,http://statistics.data.gov.uk/id/local-authority/30UE,Corporate Management,1008,"Customer, ICT & Transactional","Hackney Badges, Plates Etc.",40023,"Equipment, Furniture & Materia",5023,Hackney Carriage Door Signs to include tamper evident hologram and cover,27/02/2015,101323,178.88,Revenue,NewAuto Ltd t/a MOGO UK,17187
Chorley Borough Council,http://statistics.data.gov.uk/id/local-authority/30UE,Regulatory Services,1048,"Customer, ICT & Transactional","Hackney Badges, Plates Etc.",40023,"Equipment, Furniture & Materia",5023,Post & Packaging,27/02/2015,101323,14.90,Revenue,NewAuto Ltd t/a MOGO UK,17187
Chorley Borough Council,http://statistics.data.gov.uk/id/local-authority/30UE,Capital,Capital,Streetscene & Leisure Contracts,Main Contractor,3007,Capital Expenditure,Capital,Design and Build of Astley Park Destination Play Area in accordance with signed JCT Design and Build Contracts,25/02/2015,101048,"42,622.84",Capital,Newground CIC,22064
Chorley Borough Council,http://statistics.data.gov.uk/id/local-authority/30UE,Capital,Capital,Streetscene & Leisure Contracts,Main Contractor,3007,Capital Expenditure,Capital,"Nomow Extreme to be supplied and installed at Jubilee Recreation Ground, Station Road, Adlington, Chorley, PR7 4LA",25/02/2015,101198,"8,100.00",Capital,Nomow Limited,67877
Chorley Borough Council,http://statistics.data.gov.uk/id/local-authority/30UE,Capital,Capital,Streetscene & Leisure Contracts,Main Contractor,3007,Capital Expenditure,Capital,"Extra surface area of nomow required for Jubilee Recreation Ground, Adlington.",25/02/2015,101215,"2,896.00",Capital,Nomow Limited,67877
Chorley Borough Council,http://statistics.data.gov.uk/id/local-authority/30UE,Central Support Services,1009,Governance,Laundry,40042,"Clothing, Uniforms and Laundry",5025,town hall laundry,13/02/2015,100865,268.50,Revenue,North West Ironing & Laundry Centre,20450
Chorley Borough Council,http://statistics.data.gov.uk/id/local-authority/30UE,Service Management & Support,1009,Streetscene & Leisure Contracts,Vehicle Maintenance,30045,Direct Transport Costs,5016,Supply Poly brushes for Swingo 200,20/02/2015,101040,128.61,Revenue,Northern Municipal Spares Ltd,17752
Chorley Borough Council,http://statistics.data.gov.uk/id/local-authority/30UE,Service Management & Support,1009,Streetscene & Leisure Contracts,Vehicle Maintenance,30045,Direct Transport Costs,5016,Supply poly wire brushes for Swingo 200,20/02/2015,101040,189.63,Revenue,Northern Municipal Spares Ltd,17752
Chorley Borough Council,http://statistics.data.gov.uk/id/local-authority/30UE,Service Management & Support,1009,Streetscene & Leisure Contracts,Vehicle Maintenance,30045,Direct Transport Costs,5016,Supply wire brushes for Swingo 200,20/02/2015,101040,140.61,Revenue,Northern Municipal Spares Ltd,17752
Chorley Borough Council,http://statistics.data.gov.uk/id/local-authority/30UE,Central Support Services,1009,"Customer, ICT & Transactional",Service Fees,40056,Services,5027,Mailroom Services,27/02/2015,101337,"1,108.34",Revenue,Northgate Information Solutions UK Limited,18285
Chorley Borough Council,http://statistics.data.gov.uk/id/local-authority/30UE,Democratic Represent and  Mgnt,1007,Streetscene & Leisure Contracts,Hire Of Transport,30028,Contrct Hire & Operating Lease,5018,Hire of transit crewcab tipper Reg NK13YPT from 01/04/2014 - 31/03/2015 Please use this from 01/04/2014,13/02/2015,99565,492.86,Revenue,Northgate Vehicle Hire (NW) Ltd,17360
Chorley Borough Council,http://statistics.data.gov.uk/id/local-authority/30UE,Service Management & Support,1009,Streetscene & Leisure Contracts,Hire Of Transport,30028,Contrct Hire & Operating Lease,5018,Hire of Ford transit tipper Reg NJ10OVN from 01/04/2014 - 31/03/2015. Please use this order from 01/04/2014,13/02/2015,99565,394.29,Revenue,Northgate Vehicle Hire (NW) Ltd,17360
Chorley Borough Council,http://statistics.data.gov.uk/id/local-authority/30UE,Service Management & Support,1009,Streetscene & Leisure Contracts,Hire Of Transport,30028,Contrct Hire & Operating Lease,5018,Hire of Ford Transit tipper Reg NJ10OTK from 01/04/2014 - 31/03/2015 Please use this order from 01/04/2014,13/02/2015,99565,394.29,Revenue,Northgate Vehicle Hire (NW) Ltd,17360
Chorley Borough Council,http://statistics.data.gov.uk/id/local-authority/30UE,Service Management & Support,1009,Streetscene & Leisure Contracts,Hire Of Transport,30028,Contrct Hire & Operating Lease,5018,Hire of Ford Transit tipper NJ10OXG from 01/04/2014 - 31/03/2015 Please use this order from 01/04/2014,13/02/2015,99565,394.29,Revenue,Northgate Vehicle Hire (NW) Ltd,17360
Chorley Borough Council,http://statistics.data.gov.uk/id/local-authority/30UE,Service Management & Support,1009,Streetscene & Leisure Contracts,Hire Of Transport,30028,Contrct Hire & Operating Lease,5018,Hire of Ford transit crewcab tipper Reg NL12ONR from 01/04/2014 - 31/03/2015 Please use this from 01/04/2015,13/02/2015,99565,505.71,Revenue,Northgate Vehicle Hire (NW) Ltd,17360
Chorley Borough Council,http://statistics.data.gov.uk/id/local-authority/30UE,Service Management & Support,1009,Streetscene & Leisure Contracts,Hire Of Transport,30028,Contrct Hire & Operating Lease,5018,Hiore of Ford Transit crewcab NL12OFG from 01/04/2014 - 31/03/2015 Please use this from 01/04/2014,13/02/2015,99565,505.71,Revenue,Northgate Vehicle Hire (NW) Ltd,17360
Chorley Borough Council,http://statistics.data.gov.uk/id/local-authority/30UE,Service Management & Support,1009,Streetscene & Leisure Contracts,Hire Of Transport,30028,Contrct Hire & Operating Lease,5018,Hire of Ford Transit tipper NJ60KFK from 01/04/2014 - 31/03/2015 Please use this from 01/04/2014,13/02/2015,99565,465.44,Revenue,Northgate Vehicle Hire (NW) Ltd,17360
Chorley Borough Council,http://statistics.data.gov.uk/id/local-authority/30UE,Corporate Management,1008,Streetscene & Leisure Contracts,Hire Of Transport,30028,Contrct Hire & Operating Lease,5018,Hire of Peugeot Partner NV60BVF from 01/04/2014 - 31/03/2015 Please use this from 01/04/2014,13/02/2015,99565,233.61,Revenue,Northgate Vehicle Hire (NW) Ltd,17360
Chorley Borough Council,http://statistics.data.gov.uk/id/local-authority/30UE,Corporate Management,1008,Streetscene & Leisure Contracts,Hire Of Transport,30028,Contrct Hire & Operating Lease,5018,NX62UCS,13/02/2015,99565,233.61,Revenue,Northgate Vehicle Hire (NW) Ltd,17360
Chorley Borough Council,http://statistics.data.gov.uk/id/local-authority/30UE,Central Support Services,1009,Streetscene & Leisure Contracts,Hire Of Transport,30028,Contrct Hire & Operating Lease,5018,NJ61VSD,13/02/2015,99565,38.78,Revenue,Northgate Vehicle Hire (NW) Ltd,17360
Chorley Borough Council,http://statistics.data.gov.uk/id/local-authority/30UE,Corporate Management,1008,Streetscene & Leisure Contracts,Hire Of Transport,30028,Contrct Hire & Operating Lease,5018,NK13YNV,13/02/2015,99565,438.60,Revenue,Northgate Vehicle Hire (NW) Ltd,17360
Chorley Borough Council,http://statistics.data.gov.uk/id/local-authority/30UE,Democratic Represent and  Mgnt,1007,Streetscene & Leisure Contracts,Hire Of Transport,30028,Contrct Hire & Operating Lease,5018,Hire of transit crewcab tipper Reg NK13YPT from 01/04/2014 - 31/03/2015 Please use this from 01/04/2014,13/02/2015,100704,509.29,Revenue,Northgate Vehicle Hire (NW) Ltd,17360
Chorley Borough Council,http://statistics.data.gov.uk/id/local-authority/30UE,Service Management & Support,1009,Streetscene & Leisure Contracts,Hire Of Transport,30028,Contrct Hire & Operating Lease,5018,Hire of Ford transit tipper Reg NJ10OVN from 01/04/2014 - 31/03/2015. Please use this order from 01/04/2014,13/02/2015,100704,407.43,Revenue,Northgate Vehicle Hire (NW) Ltd,17360
Chorley Borough Council,http://statistics.data.gov.uk/id/local-authority/30UE,Service Management & Support,1009,Streetscene & Leisure Contracts,Hire Of Transport,30028,Contrct Hire & Operating Lease,5018,Hire of Ford Transit tipper Reg NJ10OTK from 01/04/2014 - 31/03/2015 Please use this order from 01/04/2014,13/02/2015,100704,407.43,Revenue,Northgate Vehicle Hire (NW) Ltd,17360
Chorley Borough Council,http://statistics.data.gov.uk/id/local-authority/30UE,Service Management & Support,1009,Streetscene & Leisure Contracts,Hire Of Transport,30028,Contrct Hire & Operating Lease,5018,Hire of Ford Transit tipper NJ10OXG from 01/04/2014 - 31/03/2015 Please use this order from 01/04/2014,13/02/2015,100704,407.43,Revenue,Northgate Vehicle Hire (NW) Ltd,17360
Chorley Borough Council,http://statistics.data.gov.uk/id/local-authority/30UE,Service Management & Support,1009,Streetscene & Leisure Contracts,Hire Of Transport,30028,Contrct Hire & Operating Lease,5018,Hire of Ford transit crewcab tipper Reg NL12ONR from 01/04/2014 - 31/03/2015 Please use this from 01/04/2015,13/02/2015,100704,522.57,Revenue,Northgate Vehicle Hire (NW) Ltd,17360
Chorley Borough Council,http://statistics.data.gov.uk/id/local-authority/30UE,Service Management & Support,1009,Streetscene & Leisure Contracts,Hire Of Transport,30028,Contrct Hire & Operating Lease,5018,Hiore of Ford Transit crewcab NL12OFG from 01/04/2014 - 31/03/2015 Please use this from 01/04/2014,13/02/2015,100704,522.57,Revenue,Northgate Vehicle Hire (NW) Ltd,17360
Chorley Borough Council,http://statistics.data.gov.uk/id/local-authority/30UE,Service Management & Support,1009,Streetscene & Leisure Contracts,Hire Of Transport,30028,Contrct Hire & Operating Lease,5018,Hire of Ford Transit tipper NJ60KFK from 01/04/2014 - 31/03/2015 Please use this from 01/04/2014,13/02/2015,100704,413.81,Revenue,Northgate Vehicle Hire (NW) Ltd,17360
Chorley Borough Council,http://statistics.data.gov.uk/id/local-authority/30UE,Corporate Management,1008,Streetscene & Leisure Contracts,Hire Of Transport,30028,Contrct Hire & Operating Lease,5018,Hire of Peugeot Partner NV60BVF from 01/04/2014 - 31/03/2015 Please use this from 01/04/2014,13/02/2015,100704,241.40,Revenue,Northgate Vehicle Hire (NW) Ltd,17360
Chorley Borough Council,http://statistics.data.gov.uk/id/local-authority/30UE,Corporate Management,1008,Streetscene & Leisure Contracts,Hire Of Transport,30028,Contrct Hire & Operating Lease,5018,Hire of Peueot Partner Reg NX62UCS from 01/04/2014 - 31/03/2015 Please use this from 01/04/2014,13/02/2015,100704,241.40,Revenue,Northgate Vehicle Hire (NW) Ltd,17360
Chorley Borough Council,http://statistics.data.gov.uk/id/local-authority/30UE,Service Management & Support,1009,Streetscene & Leisure Contracts,Hire Of Transport,30028,Contrct Hire & Operating Lease,5018,Hire of Ford Transit 3.5 tonne tipper for 4 week period,13/02/2015,100704,453.22,Revenue,Northgate Vehicle Hire (NW) Ltd,17360
Chorley Borough Council,http://statistics.data.gov.uk/id/local-authority/30UE,Central Support Services,1009,Streetscene & Leisure Contracts,Hire Of Transport,30028,Contrct Hire & Operating Lease,5018,FUEL buy it later NL120EV,13/02/2015,100704,60.51,Revenue,Northgate Vehicle Hire (NW) Ltd,17360
Chorley Borough Council,http://statistics.data.gov.uk/id/local-authority/30UE,Parking Services,1066,Streetscene & Leisure Contracts,External Contractors,50008,Private Contractors,5042,Enforcement of 50 hours per week and cash collection from off street car parks as described tender submission June 2014,11/02/2015,100873,"3,729.75",Revenue,NSL Limited,67253
Chorley Borough Council,http://statistics.data.gov.uk/id/local-authority/30UE,Unapportionable Central OHeads,1009,"Customer, ICT & Transactional",Stationery,40050,"Printing, Stationery & General",5026,"20,000 162x235mm Mailing Wallets. 90gsm White Opaque. Gummed flaps. Window 45x90mm. Position 20mm in lhs",13/02/2015,100831,491.60,Revenue,Opal Envelopes Ltd,19356
Chorley Borough Council,http://statistics.data.gov.uk/id/local-authority/30UE,Housing Strategy,1069,Transformation Management,Miscellaneous Expenses,40200,Miscellaneous Expenses,5034,"Valuation report on ADDRESS REDACTED, Buckshaw Village.",25/02/2015,100835,250.00,Revenue,Peter E Gilkes & Co,17634
Chorley Borough Council,http://statistics.data.gov.uk/id/local-authority/30UE,Central Support Services,1009,Health Environment & Neighbourhoods,External Contractor,40198,Miscellaneous Expenses,5034,Pest control duties for 2014/15,11/02/2015,100799,323.83,Revenue,Peter L Johnson,16727
Chorley Borough Council,http://statistics.data.gov.uk/id/local-authority/30UE,Central Support Services,1009,Health Environment & Neighbourhoods,External Contractor,40198,Miscellaneous Expenses,5034,Pest control duties for 2014/15,13/02/2015,100977,323.83,Revenue,Peter L Johnson,16727
Chorley Borough Council,http://statistics.data.gov.uk/id/local-authority/30UE,Central Support Services,1009,Health Environment & Neighbourhoods,External Contractor,40198,Miscellaneous Expenses,5034,Pest control duties for 2014/15,20/02/2015,101078,323.83,Revenue,Peter L Johnson,16727
Chorley Borough Council,http://statistics.data.gov.uk/id/local-authority/30UE,Central Support Services,1009,Health Environment & Neighbourhoods,External Contractor,40198,Miscellaneous Expenses,5034,Pest control duties for 2014/15,27/02/2015,101293,323.83,Revenue,Peter L Johnson,16727
Chorley Borough Council,http://statistics.data.gov.uk/id/local-authority/30UE,Service Management & Support,1009,Streetscene & Leisure Contracts,Diesel/Derv,30007,Direct Transport Costs,5016,Supply road diesel 4000litres delivered to Bengal St depot at price quoted,27/02/2015,101312,"3,992.00",Revenue,Pilkington Oils,18075
Chorley Borough Council,http://statistics.data.gov.uk/id/local-authority/30UE,Economic Development,1096,Economic Development,Publicity - Advertising,40157,Miscellaneous Expenses,5034,Category sponsor package EVA`s Friday 25 Sept 2015,11/02/2015,100670,"2,000.00",Revenue,Pink Link Ladies Ltd,66886
Chorley Borough Council,http://statistics.data.gov.uk/id/local-authority/30UE,Planning Policy,1092,Planning,Consultants` Fees,40077,Services,5027,CIL and Infrastructure Planning Group - participation fee for January - December 2015,18/02/2015,100822,"1,500.00",Revenue,POS Enterprises Ltd,21082
Chorley Borough Council,http://statistics.data.gov.uk/id/local-authority/30UE,Unapportionable Central OHeads,1009,Chief Executives Office,Photocopier Consumables,40049,"Printing, Stationery & General",5026,"Evolution Everyday A4 80gsm, Box 2500",20/02/2015,101018,454.00,Revenue,Premier Paper Group,54451
Chorley Borough Council,http://statistics.data.gov.uk/id/local-authority/30UE,Unapportionable Central OHeads,1009,Governance,Refreshments,40036,Catering,5024,water cooler supply and sanitation till march 2015.,11/02/2015,100702,342.00,Revenue,Pressure Coolers Ltd T/A Maestro International Ltd,19767
Chorley Borough Council,http://statistics.data.gov.uk/id/local-authority/30UE,Private Sector HSG Renewal,1073,Housing,Miscellaneous Expenses,40200,Miscellaneous Expenses,5034,"Affordable Warmth Fund - Heating System Maintenance, Warm Homes Checks and associated administrative costs",13/02/2015,100932,"2,203.00",Revenue,Preston Care and Repair,50018
Chorley Borough Council,http://statistics.data.gov.uk/id/local-authority/30UE,Economic Development,1096,Economic Development,Grants To Other Organisations,40127,Grants and Subscriptions,5031,Choose Chorley initial concept work for video,25/02/2015,101216,300.00,Revenue,Primary Graphics,22469
Chorley Borough Council,http://statistics.data.gov.uk/id/local-authority/30UE,Elections,1012,Governance,Postages,40082,Communication and Computing,5028,"mailings for mini canvass 48,576 properties",04/02/2015,100665,"12,541.94",Revenue,Print Image Facilities LLP,57870
Chorley Borough Council,http://statistics.data.gov.uk/id/local-authority/30UE,Elections,1012,Governance,Printing,40043,"Printing, Stationery & General",5026,"48,602 mini canvass mailing",27/02/2015,101242,"5,563.40",Revenue,Print Image Network,21171
Chorley Borough Council,http://statistics.data.gov.uk/id/local-authority/30UE,Elections,1012,Governance,Printing,40043,"Printing, Stationery & General",5026,final reminders x 350,27/02/2015,101243,420.00,Revenue,Print Image Network,21171
Chorley Borough Council,http://statistics.data.gov.uk/id/local-authority/30UE,Elections,1012,Governance,Printing,40043,"Printing, Stationery & General",5026,additional mailing,27/02/2015,101243,420.00,Revenue,Print Image Network,21171
Chorley Borough Council,http://statistics.data.gov.uk/id/local-authority/30UE,Elections,1012,Governance,Printing,40043,"Printing, Stationery & General",5026,1479 final reminders and additional mailings,27/02/2015,101244,420.00,Revenue,Print Image Network,21171
Chorley Borough Council,http://statistics.data.gov.uk/id/local-authority/30UE,Homelessness,1075,Housing,External Contractor,40198,Miscellaneous Expenses,5034,"Concierge service at Cotswold Supported Housing, Cotswold Road, Chorley. Lancashire, PR7 3HW. This is for the period",25/02/2015,100886,"4,412.39",Revenue,Profile Security Ltd,58000
Chorley Borough Council,http://statistics.data.gov.uk/id/local-authority/30UE,Capital,Capital,Streetscene & Leisure Contracts,Main Contractor,3007,Capital Expenditure,Capital,"J515 Bibox Skyrail Challenge with leg extensions for installation into bark safety surfacing, J3504N Turnfly, J2410 Hip Hop. ",13/02/2015,100870,"13,000.00",Capital,Proludic Ltd,22087
Chorley Borough Council,http://statistics.data.gov.uk/id/local-authority/30UE,Unapportionable Central OHeads,1009,Governance,Burglar Alarms & Security Systems,20075,Fixtures and Fittings,5010,works as per quote number NEL2014101742 at New Front Office Union St,13/02/2015,100872,669.57,Revenue,Protec Fire Detection Plc,17988
Chorley Borough Council,http://statistics.data.gov.uk/id/local-authority/30UE,Central Support Services,1009,Transformation Management,Training Course Fees,17010,Indirect Employee Expenses,5002,book the courses for the dates and candidates as follows: Party walls and boundaries Building contract management,25/02/2015,101077,275.00,Revenue,RICS Business Services Ltd,17439
Chorley Borough Council,http://statistics.data.gov.uk/id/local-authority/30UE,Surplus or Deficit on Trading,1019,Policy & Performance,Research & Feasibilities,40079,Services,5027,Project management and planning consultancy services as part of the Market Walk Extension project,25/02/2015,100868,"11,250.00",Revenue,Rider Levett Bucknall,67527
Chorley Borough Council,http://statistics.data.gov.uk/id/local-authority/30UE,Economic Development,1096,Economic Development,Grants To Other Organisations,40127,Grants and Subscriptions,5031,,11/02/2015,100408,250.00,Revenue,Roger Tyrer,68575
Chorley Borough Council,http://statistics.data.gov.uk/id/local-authority/30UE,Elections,1012,Governance,Postages,40082,Communication and Computing,5028,Business Reply service - RRHA-KZCR-CAXA April 2014 - March 2015,25/02/2015,101178,343.57,Revenue,Royal Mail Group Plc,17522
Chorley Borough Council,http://statistics.data.gov.uk/id/local-authority/30UE,Precepts and Collection Fund,Precept,"Customer, ICT & Transactional",Bailiff Costs,2018,Precepts & Collection Fund,Precept,Compliance & VAT,13/02/2015,100907,297.49,Revenue,Rundles,17803
Chorley Borough Council,http://statistics.data.gov.uk/id/local-authority/30UE,Precepts and Collection Fund,Precept,"Customer, ICT & Transactional",Bailiff Costs,2018,Precepts & Collection Fund,Precept,Compliance & VAT,13/02/2015,100907,0.00,Revenue,Rundles,17803
Chorley Borough Council,http://statistics.data.gov.uk/id/local-authority/30UE,Central Support Services,1009,"Customer, ICT & Transactional",Training Course Fees,17010,Indirect Employee Expenses,5002,"Introduction to ArcGIS part 1 and 2 - Salford, 7-8 Jan 2015",04/02/2015,100575,500.00,Revenue,Salford Gis Ltd,16684
Chorley Borough Council,http://statistics.data.gov.uk/id/local-authority/30UE,Service Management & Support,1009,Streetscene & Leisure Contracts,Diesel/Derv,30007,Direct Transport Costs,5016,Supply 8000 litres of road diesel to be delivered to Bengal St depot at price quoted via the chest.,13/02/2015,100845,"6,208.11",Revenue,Samuel Cooke & Co Ltd,17173
Chorley Borough Council,http://statistics.data.gov.uk/id/local-authority/30UE,Democratic Represent and  Mgnt,1007,Governance,Mayoral Hospitality,40123,Expenses,5030,"Entertainment at the Mayor`s Charity Ball in the Lancastrian, Chorley Town Hall on Friday 6th February 2015. .",13/02/2015,101002,300.00,Revenue,Scandal,67988
Chorley Borough Council,http://statistics.data.gov.uk/id/local-authority/30UE,Homelessness,1075,Housing,External Contractor,40198,Miscellaneous Expenses,5034,"Concierge Service at Cotswold Supported Housing, Cotswold Road, Chorley, Lancashire, PR7 3HW. ",27/02/2015,101214,279.87,Revenue,Sector Security Services,19269
Chorley Borough Council,http://statistics.data.gov.uk/id/local-authority/30UE,Service Management & Support,1009,Streetscene & Leisure Contracts,Tools & Equipment - Purchase,40003,"Equipment, Furniture & Materia",5023,Supply HL101 Hedge trimeer as per your quote ,13/02/2015,100864,940.00,Revenue,Seddons (Plant and Engineers) ltd,47834
Chorley Borough Council,http://statistics.data.gov.uk/id/local-authority/30UE,Service Management & Support,1009,Streetscene & Leisure Contracts,Tools & Equipment - Purchase,40003,"Equipment, Furniture & Materia",5023,Supply HT101 Pole saw as per your quote ,13/02/2015,100864,880.00,Revenue,Seddons (Plant and Engineers) ltd,47834
Chorley Borough Council,http://statistics.data.gov.uk/id/local-authority/30UE,Service Management & Support,1009,Streetscene & Leisure Contracts,Supplies & Consumables -Street Cleansing,40235,"Equipment, Furniture & Materia",5023,Supply harness to suit Pole saw as per your quote,13/02/2015,100864,112.00,Revenue,Seddons (Plant and Engineers) ltd,47834
Chorley Borough Council,http://statistics.data.gov.uk/id/local-authority/30UE,Elections,1012,Governance,Stationery,40050,"Printing, Stationery & General",5026,Parliamentary Candidate  & Agents Packs GE-AP,25/02/2015,101044,"1,102.50",Revenue,Shaw & Sons Ltd,18092
Chorley Borough Council,http://statistics.data.gov.uk/id/local-authority/30UE,Elections,1012,Governance,Stationery,40050,"Printing, Stationery & General",5026,local government Candidates & Agents Packs LE-AP,25/02/2015,101044,388.50,Revenue,Shaw & Sons Ltd,18092
Chorley Borough Council,http://statistics.data.gov.uk/id/local-authority/30UE,Elections,1012,Governance,Stationery,40050,"Printing, Stationery & General",5026,Parish/Town Councils candidates & Agents Packs  PCE-CP,25/02/2015,101044,173.25,Revenue,Shaw & Sons Ltd,18092
Chorley Borough Council,http://statistics.data.gov.uk/id/local-authority/30UE,Elections,1012,Governance,Stationery,40050,"Printing, Stationery & General",5026,Borough Agents Packs Parliamentary Agents Packs Parish Agents Packs,27/02/2015,101217,933.35,Revenue,Shaw & Sons Ltd,18092
Chorley Borough Council,http://statistics.data.gov.uk/id/local-authority/30UE,Central Support Services,1009,"Customer, ICT & Transactional",Training Course Fees,17010,Indirect Employee Expenses,5002,Annual charge for 3 delegates to attend quarterly Academy North West User Groups meetings 3 delegates x 90.,13/02/2015,100531,270.00,Revenue,South Ribble Borough Council,17889
Chorley Borough Council,http://statistics.data.gov.uk/id/local-authority/30UE,Corporate Management,1008,Shared Service Arrangement,Other Fees,40212,Miscellaneous Expenses,5034,Insurance broker fees for April 2014 - March 2015,25/02/2015,101170,"2,500.00",Revenue,South Ribble Borough Council,17889
Chorley Borough Council,http://statistics.data.gov.uk/id/local-authority/30UE,Democratic Represent and  Mgnt,1007,Streetscene & Leisure Contracts,Fixtures & Fittings - Purchase,20027,Fixtures and Fittings,5010,Works at Brinscall Baths Replacing double fire doors with steel doors complete with push bars and painted finish.,27/02/2015,101284,"1,648.07",Revenue,Speakman Contractors Ltd,54838
Chorley Borough Council,http://statistics.data.gov.uk/id/local-authority/30UE,Central Support Services,1009,Health Environment & Neighbourhoods,Miscellaneous Expenses,40200,Miscellaneous Expenses,5034,"Time Credit Programme 2014/15 - new purchase order to replace PRD037651. Three payments remaining at 18,175.00 ",13/02/2015,100940,"18,175.42",Revenue,Spice Innovations Ltd,61318
Chorley Borough Council,http://statistics.data.gov.uk/id/local-authority/30UE,Corporate Management,1008,Chief Executives Office,Professional Fees,40063,Services,5027,Work on Functional Economic Area analysis,18/02/2015,100480,"4,940.50",Revenue,SQW Limited,68089
Chorley Borough Council,http://statistics.data.gov.uk/id/local-authority/30UE,Capital,Capital,Streetscene & Leisure Contracts,Equipment,3014,Capital Expenditure,Capital,20 litre inner caddy for 140 litre wheeled bin. ,11/02/2015,100633,"1,365.00",Capital,Straight Plc,17633
Chorley Borough Council,http://statistics.data.gov.uk/id/local-authority/30UE,Capital,Capital,Streetscene & Leisure Contracts,Equipment,3014,Capital Expenditure,Capital,Supply of 19 litre inner caddies to fit 140 litre wheeled bin. As per quotation ,25/02/2015,100830,910.00,Capital,Straight Plc,17633
Chorley Borough Council,http://statistics.data.gov.uk/id/local-authority/30UE,Capital,Capital,Streetscene & Leisure Contracts,Equipment,3014,Capital Expenditure,Capital,Supply of 240 litre whheled bins as per Quotation Number 0000000380. 3 WBN240BLU04CHOR01 ,25/02/2015,100871,"9,180.00",Capital,Straight Plc,17633
Chorley Borough Council,http://statistics.data.gov.uk/id/local-authority/30UE,Capital,Capital,Streetscene & Leisure Contracts,Equipment,3014,Capital Expenditure,Capital,Supply of 240 litre wheeled bins as per Quotation Number 0000000380. WBN240GRN02CHOR01 ,27/02/2015,101283,"9,180.00",Capital,Straight Plc,17633
Chorley Borough Council,http://statistics.data.gov.uk/id/local-authority/30UE,Unapportionable Central OHeads,1009,Transformation Management,General Repairs - Reactive,20004,Repairs Maintenance & Alts,5005,Blanket order from 1/1/15 to 31/3/15 for reactive works.,11/02/2015,99801,436.08,Revenue,Stringfellow Bldg Cntrctrs Ltd,17893
Chorley Borough Council,http://statistics.data.gov.uk/id/local-authority/30UE,Central Support Services,1009,Transformation Management,General Repairs - Reactive,20004,Repairs Maintenance & Alts,5005,Blanket order until 31/3/15 for Reactive Works.,11/02/2015,100082,675.00,Revenue,Stringfellow Bldg Cntrctrs Ltd,17893
Chorley Borough Council,http://statistics.data.gov.uk/id/local-authority/30UE,Unapportionable Central OHeads,1009,Transformation Management,General Repairs - Reactive,20004,Repairs Maintenance & Alts,5005,Blanket order until 31/3/15 for Reactive Works.,11/02/2015,100735,281.39,Revenue,Stringfellow Bldg Cntrctrs Ltd,17893
Chorley Borough Council,http://statistics.data.gov.uk/id/local-authority/30UE,Central Support Services,1009,Transformation Management,General Repairs - Reactive,20004,Repairs Maintenance & Alts,5005,Blanket order until 31/3/15 for Reactive Works.,18/02/2015,100738,259.21,Revenue,Stringfellow Bldg Cntrctrs Ltd,17893
Chorley Borough Council,http://statistics.data.gov.uk/id/local-authority/30UE,Unapportionable Central OHeads,1009,Transformation Management,General Repairs - Reactive,20004,Repairs Maintenance & Alts,5005,Blanket order until 31/3/15 for Reactive Works.,11/02/2015,100740,350.05,Revenue,Stringfellow Bldg Cntrctrs Ltd,17893
Chorley Borough Council,http://statistics.data.gov.uk/id/local-authority/30UE,Central Support Services,1009,Transformation Management,General Repairs - Reactive,20004,Repairs Maintenance & Alts,5005,Blanket order until 31/3/15 for Reactive Works.,11/02/2015,100747,275.00,Revenue,Stringfellow Bldg Cntrctrs Ltd,17893
Chorley Borough Council,http://statistics.data.gov.uk/id/local-authority/30UE,Unapportionable Central OHeads,1009,Transformation Management,General Repairs - Reactive,20004,Repairs Maintenance & Alts,5005,Blanket order until 31/3/15 for Reactive Works.,11/02/2015,100754,371.53,Revenue,Stringfellow Bldg Cntrctrs Ltd,17893
Chorley Borough Council,http://statistics.data.gov.uk/id/local-authority/30UE,Central Support Services,1009,Transformation Management,General Repairs - Reactive,20004,Repairs Maintenance & Alts,5005,Blanket order from 1/1/15 to 31/3/15 for reactive works.,18/02/2015,100757,811.45,Revenue,Stringfellow Bldg Cntrctrs Ltd,17893
Chorley Borough Council,http://statistics.data.gov.uk/id/local-authority/30UE,Central Support Services,1009,Transformation Management,General Repairs - Reactive,20004,Repairs Maintenance & Alts,5005,Blanket order until 31/3/15 for Reactive Works.,18/02/2015,100759,307.74,Revenue,Stringfellow Bldg Cntrctrs Ltd,17893
Chorley Borough Council,http://statistics.data.gov.uk/id/local-authority/30UE,Unapportionable Central OHeads,1009,Transformation Management,General Repairs - Reactive,20004,Repairs Maintenance & Alts,5005,Blanket order until 31/3/15 for Reactive Works.,18/02/2015,100760,664.36,Revenue,Stringfellow Bldg Cntrctrs Ltd,17893
Chorley Borough Council,http://statistics.data.gov.uk/id/local-authority/30UE,Central Support Services,1009,Transformation Management,General Repairs - Reactive,20004,Repairs Maintenance & Alts,5005,Blanket order until 31/3/15 for Reactive Works.,27/02/2015,100762,490.25,Revenue,Stringfellow Bldg Cntrctrs Ltd,17893
Chorley Borough Council,http://statistics.data.gov.uk/id/local-authority/30UE,Unapportionable Central OHeads,1009,Transformation Management,General Repairs - Reactive,20004,Repairs Maintenance & Alts,5005,Blanket order for REACTIVE works until 31/3/15.,18/02/2015,100820,552.79,Revenue,Stringfellow Bldg Cntrctrs Ltd,17893
Chorley Borough Council,http://statistics.data.gov.uk/id/local-authority/30UE,Capital,Capital,Housing,Grants,3002,Capital Expenditure,Capital,ADDRESS REDACTED,13/02/2015,101007,"2,750.00",Capital,Stringfellow Bldg Cntrctrs Ltd,17893
Chorley Borough Council,http://statistics.data.gov.uk/id/local-authority/30UE,Central Support Services,1009,Transformation Management,General Repairs - Reactive,20004,Repairs Maintenance & Alts,5005,Blanket order for REACTIVE works until 31/3/15.,27/02/2015,101017,350.00,Revenue,Stringfellow Bldg Cntrctrs Ltd,17893
Chorley Borough Council,http://statistics.data.gov.uk/id/local-authority/30UE,Corporate Management,1008,Policy & Performance,Promotional Expenses,40159,Miscellaneous Expenses,5034,Photo booth for Market Walk on 20 February 2015,25/02/2015,100934,475.00,Revenue,Sunshine Events,22127
Chorley Borough Council,http://statistics.data.gov.uk/id/local-authority/30UE,Unapportionable Central OHeads,1009,Governance,Publications,40054,"Printing, Stationery & General",5026,Westlaw Online Subscription for the period 01.01.15 - 31.12.15 Invoice No: 6800192071,18/02/2015,101012,"6,285.51",Revenue,Sweet & Maxwell Limited,17932
Chorley Borough Council,http://statistics.data.gov.uk/id/local-authority/30UE,Homelessness,1075,Housing,Tools & Equipment - Purchase,40003,"Equipment, Furniture & Materia",5023,MUG - tea/coffee mug,20/02/2015,100847,24.00,Revenue,Swiftkleen Ltd,17933
Chorley Borough Council,http://statistics.data.gov.uk/id/local-authority/30UE,Homelessness,1075,Housing,Tools & Equipment - Purchase,40003,"Equipment, Furniture & Materia",5023,PILLOW 2 - 2 pack,20/02/2015,100847,27.20,Revenue,Swiftkleen Ltd,17933
Chorley Borough Council,http://statistics.data.gov.uk/id/local-authority/30UE,Homelessness,1075,Housing,Tools & Equipment - Purchase,40003,"Equipment, Furniture & Materia",5023,DUVET,20/02/2015,100847,57.60,Revenue,Swiftkleen Ltd,17933
Chorley Borough Council,http://statistics.data.gov.uk/id/local-authority/30UE,Homelessness,1075,Housing,Tools & Equipment - Purchase,40003,"Equipment, Furniture & Materia",5023,BOWL - washing up bowl,20/02/2015,100847,5.16,Revenue,Swiftkleen Ltd,17933
Chorley Borough Council,http://statistics.data.gov.uk/id/local-authority/30UE,Homelessness,1075,Housing,Tools & Equipment - Purchase,40003,"Equipment, Furniture & Materia",5023,BUTTERFLY TIN OPENER,20/02/2015,100847,10.20,Revenue,Swiftkleen Ltd,17933
Chorley Borough Council,http://statistics.data.gov.uk/id/local-authority/30UE,Homelessness,1075,Housing,Tools & Equipment - Purchase,40003,"Equipment, Furniture & Materia",5023,FRYING PAN - 28cm,20/02/2015,100847,86.16,Revenue,Swiftkleen Ltd,17933
Chorley Borough Council,http://statistics.data.gov.uk/id/local-authority/30UE,Homelessness,1075,Housing,Tools & Equipment - Purchase,40003,"Equipment, Furniture & Materia",5023,SB25 (RED) - Swing Bin,20/02/2015,100847,49.74,Revenue,Swiftkleen Ltd,17933
Chorley Borough Council,http://statistics.data.gov.uk/id/local-authority/30UE,Homelessness,1075,Housing,Tools & Equipment - Purchase,40003,"Equipment, Furniture & Materia",5023,GVF -Glade Vacuum Freshener,20/02/2015,100847,4.41,Revenue,Swiftkleen Ltd,17933
Chorley Borough Council,http://statistics.data.gov.uk/id/local-authority/30UE,Homelessness,1075,Housing,Tools & Equipment - Purchase,40003,"Equipment, Furniture & Materia",5023,POTATO MASHER,20/02/2015,100847,6.12,Revenue,Swiftkleen Ltd,17933
Chorley Borough Council,http://statistics.data.gov.uk/id/local-authority/30UE,Homelessness,1075,Housing,Tools & Equipment - Purchase,40003,"Equipment, Furniture & Materia",5023,FLICK EXT - flick duster,20/02/2015,100847,9.58,Revenue,Swiftkleen Ltd,17933
Chorley Borough Council,http://statistics.data.gov.uk/id/local-authority/30UE,Homelessness,1075,Housing,Tools & Equipment - Purchase,40003,"Equipment, Furniture & Materia",5023,KITCHEN KNIFE - Chef`s Kitchen Utility Knife,20/02/2015,100847,21.00,Revenue,Swiftkleen Ltd,17933
Chorley Borough Council,http://statistics.data.gov.uk/id/local-authority/30UE,Democratic Represent and  Mgnt,1007,Governance,Tools & Equipment - Maintenance,40005,"Equipment, Furniture & Materia",5023,Gold level of maintenance for the PA system in the Lancastrian for the period Jan 15th 2015 to 14th January 2015,25/02/2015,101197,798.00,Revenue,T G Baker (sound) LTD,22364
Chorley Borough Council,http://statistics.data.gov.uk/id/local-authority/30UE,Economic Development,1096,Economic Development,Grants To Other Organisations,40127,Grants and Subscriptions,5031,Starting in Business Grant,13/02/2015,100990,250.00,Revenue,NAME REDACTED,68969
Chorley Borough Council,http://statistics.data.gov.uk/id/local-authority/30UE,Economic Development,1096,Economic Development,Grants To Other Organisations,40127,Grants and Subscriptions,5031,Payment 1,13/02/2015,100987,"4,000.00",Revenue,The Centre for Whole Health Ltd.,68425
Chorley Borough Council,http://statistics.data.gov.uk/id/local-authority/30UE,Community Development,1097,Health Environment & Neighbourhoods,Miscellaneous Expenses,40200,Miscellaneous Expenses,5034,"4 quarterly publications of Pick me Up Chorley East health newsletter Nov 2013, Feb 2014, May 2014, July,2014",27/02/2015,101303,462.60,Revenue,The Print Quarter,17987
Chorley Borough Council,http://statistics.data.gov.uk/id/local-authority/30UE,Central Support Services,1009,Health Environment & Neighbourhoods,Exhibitions & Special Events,40158,Miscellaneous Expenses,5034,Delivery of Dick Whittingham pantomime at Chorley Town Hall on Saturday 29th November,04/02/2015,100697,750.00,Revenue,The Storytellers Theatre Company,19917
Chorley Borough Council,http://statistics.data.gov.uk/id/local-authority/30UE,Democratic Represent and  Mgnt,1007,Streetscene & Leisure Contracts,Supplies-Grounds Maintenance,40025,"Equipment, Furniture & Materia",5023,"Walk over of Carr Brook Linear Park, marking up trees for coppice and felling and advice to staff.",13/02/2015,100681,500.00,Revenue,The Wildlife Trust,20386
Chorley Borough Council,http://statistics.data.gov.uk/id/local-authority/30UE,Capital,Capital,Streetscene & Leisure Contracts,Main Contractor,3007,Capital Expenditure,Capital,Rpii safety inspection for the play equipment on Jubilee Recreation Ground,25/02/2015,101196,500.00,Capital,Thompson Groundworks of Yorkshire,68711
Chorley Borough Council,http://statistics.data.gov.uk/id/local-authority/30UE,Capital,Capital,Streetscene & Leisure Contracts,Main Contractor,3007,Capital Expenditure,Capital,"Extra works to Jubilee Recreation Ground including drainage, path creation, extra digging out and groundworks",25/02/2015,101200,"2,000.00",Capital,Thompson Groundworks of Yorkshire,68711
Chorley Borough Council,http://statistics.data.gov.uk/id/local-authority/30UE,Capital,Capital,Streetscene & Leisure Contracts,Main Contractor,3007,Capital Expenditure,Capital,materials,25/02/2015,101200,"1,100.00",Capital,Thompson Groundworks of Yorkshire,68711
Chorley Borough Council,http://statistics.data.gov.uk/id/local-authority/30UE,Capital,Capital,Streetscene & Leisure Contracts,Main Contractor,3007,Capital Expenditure,Capital,"Jubilee Recreation Ground Play Area - Site prep, groundworks, pathway, acces ramps, log edging installation",25/02/2015,101201,"6,000.00",Capital,Thompson Groundworks of Yorkshire,68711
Chorley Borough Council,http://statistics.data.gov.uk/id/local-authority/30UE,Capital,Capital,Streetscene & Leisure Contracts,Main Contractor,3007,Capital Expenditure,Capital,materials,25/02/2015,101201,"3,945.00",Capital,Thompson Groundworks of Yorkshire,68711
Chorley Borough Council,http://statistics.data.gov.uk/id/local-authority/30UE,Service Management & Support,1009,Streetscene & Leisure Contracts,External Contractor,40198,Miscellaneous Expenses,5034,Hire of tractor trailer grab driver for one day to remove and deliver stones and cast iron pipes Back Lane Clayton le Woods,20/02/2015,101074,400.00,Revenue,Treescape North West Ltd,17688
Chorley Borough Council,http://statistics.data.gov.uk/id/local-authority/30UE,Surplus or Deficit on Trading,1019,Governance,Miscellaneous Expenses,40200,Miscellaneous Expenses,5034,Agency fee in respect of Lease of Unit ADDRESS REDACTED to Communications Plus/O2,18/02/2015,101019,"3,300.00",Revenue,Tushingham Moore LLP,63077
Chorley Borough Council,http://statistics.data.gov.uk/id/local-authority/30UE,Control Accounts,Control,HR & Org. Development,General Balances,100,Balance Sheet,Balance,Top Ups,11/02/2015,100479,201.45,Revenue,UK Healthcare (BDHSC),17241
Chorley Borough Council,http://statistics.data.gov.uk/id/local-authority/30UE,Unapportionable Central OHeads,1009,HR & Org. Development,Miscellaneous Expenses,40200,Miscellaneous Expenses,5034,01-May,11/02/2015,100479,"1,683.80",Revenue,UK Healthcare (BDHSC),17241
Chorley Borough Council,http://statistics.data.gov.uk/id/local-authority/30UE,Central Support Services,1009,HR & Org. Development,Miscellaneous Expenses,40200,Miscellaneous Expenses,5034,Levels 1-5,25/02/2015,101139,"1,415.91",Revenue,UK Healthcare (BDHSC),17241
Chorley Borough Council,http://statistics.data.gov.uk/id/local-authority/30UE,Control Accounts,Control,HR & Org. Development,General Balances,100,Balance Sheet,Balance,Top Ups,25/02/2015,101139,467.16,Revenue,UK Healthcare (BDHSC),17241
Chorley Borough Council,http://statistics.data.gov.uk/id/local-authority/30UE,Central Support Services,1009,"Customer, ICT & Transactional",Postages,40082,Communication and Computing,5028,Imail Eco Business mono letters - hybrid,18/02/2015,101023,653.99,Revenue,UKMAIL Ltd (Mail),57758
Chorley Borough Council,http://statistics.data.gov.uk/id/local-authority/30UE,Central Support Services,1009,"Customer, ICT & Transactional",Postages,40082,Communication and Computing,5028,Imail Eco Business mono letters - hybrid,18/02/2015,101024,823.98,Revenue,UKMAIL Ltd (Mail),57758
Chorley Borough Council,http://statistics.data.gov.uk/id/local-authority/30UE,Central Support Services,1009,"Customer, ICT & Transactional",Postages,40082,Communication and Computing,5028,Imail Eco Business mono letters - hybrid,18/02/2015,101025,650.95,Revenue,UKMAIL Ltd (Mail),57758
Chorley Borough Council,http://statistics.data.gov.uk/id/local-authority/30UE,Control Accounts,Control,Shared Service Arrangement,General Balances,100,Balance Sheet,Balance,Salary Ded Feb 15,18/02/2015,101034,"1,258.46",Revenue,Unify Credit Union Ltd,55509
Chorley Borough Council,http://statistics.data.gov.uk/id/local-authority/30UE,Corporate Management,1008,Transformation Management,Water - Metered Supplies,20022,Water Services,5009,Market Place Toiltes,20/02/2015,100895,"2,187.42",Revenue,United Utilities Water Plc,17926
Chorley Borough Council,http://statistics.data.gov.uk/id/local-authority/30UE,Central Support Services,1009,Transformation Management,Water - Metered Supplies,20022,Water Services,5009,Union Street,20/02/2015,100896,775.82,Revenue,United Utilities Water Plc,17926
Chorley Borough Council,http://statistics.data.gov.uk/id/local-authority/30UE,Development Control,1091,Planning,Professional Fees,40063,Services,5027,Planning Officer Support -  for the period December 2014 and January 2015,18/02/2015,100511,"1,625.00",Revenue,Urban Vision Partnership Ltd,21181
Chorley Borough Council,http://statistics.data.gov.uk/id/local-authority/30UE,Culture & Heritage,1036,Streetscene & Leisure Contracts,Lifelong Learning Activities,40194,Miscellaneous Expenses,5034,Illustrations for interpretation of Servants Quarters at Astley Hall. 5 illustrations at 100 each,20/02/2015,101037,500.00,Revenue,Wayne Hill,57163
Chorley Borough Council,http://statistics.data.gov.uk/id/local-authority/30UE,Economic Development,1096,Economic Development,Grants To Other Organisations,40127,Grants and Subscriptions,5031,Promotion pens for Choose Chorley business events.  448.50 plus VAT,27/02/2015,101279,423.50,Revenue,WeBrand4You,68716
Chorley Borough Council,http://statistics.data.gov.uk/id/local-authority/30UE,Culture & Heritage,1036,Streetscene & Leisure Contracts,Consultants` Fees,40077,Services,5027,Curatorial consultants` fees for January 2015. 349.98 plus vat,13/02/2015,100821,349.98,Revenue,Whittle and Draper Fine Art,52271
Chorley Borough Council,http://statistics.data.gov.uk/id/local-authority/30UE,Capital,Capital,Streetscene & Leisure Contracts,Main Contractor,3007,Capital Expenditure,Capital,"Resurfacing and improvements to Fleet St short stay car park, Chorley",27/02/2015,101290,"5,711.15",Capital,William Pye Ltd,60564
Chorley Borough Council,http://statistics.data.gov.uk/id/local-authority/30UE,Capital,Capital,Streetscene & Leisure Contracts,Main Contractor,3007,Capital Expenditure,Capital,2.5% retention payable on practical completion,27/02/2015,101290,"4,306.98",Capital,William Pye Ltd,60564
Chorley Borough Council,http://statistics.data.gov.uk/id/local-authority/30UE,Corporate Management,1008,Streetscene & Leisure Contracts,Vehicle Maintenance,30045,Direct Transport Costs,5016,Callout to recover T481MNB from police station. Carryout repairs to exhaust and braking system ensure vehicle is fit for use.,27/02/2015,101194,272.00,Revenue,Wrekamendid Services Ltd,21188
Chorley Borough Council,http://statistics.data.gov.uk/id/local-authority/30UE,Central Support Services,1009,"Customer, ICT & Transactional",Computer Software-Maintenance,40107,Communication and Computing,5028,Annual support and maintenance of the Zipporah Children`s activity booking system 1st August 2014 to 31st July 2015 ,11/02/2015,100668,"3,100.11",Revenue,Zipporah LTD,21786
Chorley Borough Council,http://statistics.data.gov.uk/id/local-authority/30UE,Corporate Management,1008,Shared Service Arrangement,Employee Related Insurance,18003,Indirect Employee Expenses,5002,Local Authority Comb Policy,25/02/2015,101031,"209,883.23",Revenue,Zurich Insurance Company,16236
Chorley Borough Council,http://statistics.data.gov.uk/id/local-authority/30UE,Corporate Management,1008,Shared Service Arrangement,Employee Related Insurance,18003,Indirect Employee Expenses,5002,Engineering Ispection Renewal,18/02/2015,101033,"6,765.71",Revenue,Zurich Insurance Company,16236
Chorley Borough Council,http://statistics.data.gov.uk/id/local-authority/30UE,Corporate Management,1008,Shared Service Arrangement,Employee Related Insurance,18003,Indirect Employee Expenses,5002,Renewal,18/02/2015,101060,265.00,Revenue,Zurich Insurance Company,16236
